Workbook

Sheet general
A2: number of nodes | D2: 33
A3: number of lines | D3: 50
A4: number of zones | D4: 6
B6: physical
B7: commercial
B9: 11 | C9: A | K9: F
D11: 0 | E11: ='AAF + CP'!D4 -> -7.987360818 | H11: 0 | I11: ='AAF + CP'!D5 -> 7.987360818
C12: B | D12: 0 | E12: =-E11 -> 7.987360818 | G12: C | H12: 0 | I12: =-I11 -> -7.987360818
F13: ='AAF + CP'!D22 -> 58 | G13: =-F13 -> -58
F14: ='AAF + CP'!D6 -> 35.88591992 | G14: =-F14 -> -35.88591992
D15: 0 | E15: ='AAF + CP'!D7 -> 14.12671927 | H15: ='AAF + CP'!D23 -> 47 | I15: ='AAF + CP'!D8 -> 32.87328073
C16: D | D16: 0 | E16: =-E15 -> -14.12671927 | G16: E | H16: =-H15 -> -47 | I16: =-I15 -> -32.87328073
F17: 0 | G17: 0 | J17: ='AAF + CP'!D24 -> 48.5 | K17: =-J17 -> -48.5
F18: ='AAF + CP'!D9 -> 14.12671927 | G18: =-F18 -> -14.12671927 | J18: ='AAF + CP'!D10 -> 48.5 | K18: =-J18 -> -48.5

Sheet map
B2: A | AU2: F
K3: 22 | M3: =nodes!B24 -> 200 | N3: =nodes!C24 -> 650
K4: ac | L4: ab | M4: aa | W4: 27 | X4: =nodes!B29 -> 250 | Y4: =nodes!C29 -> 200 | AL4: 23 | AN4: =nodes!B25 -> 150 | AO4: =nodes!C25 -> 400
W5: ab | X5: ae | AL5: aa | AM5: y | AN5: x
Z7: 25 | AC7: =nodes!B27 -> 500 | AD7: =nodes!C27 -> 150
Q8: 26 | S8: =nodes!B28 -> 300 | T8: =nodes!C28 -> 100 | Z8: ae | AA8: ad | AB8: h | AC8: z | AK8: 24 | AM8: =nodes!B26 -> 200 | AN8: =nodes!C26 -> 100 | AV8: 17 | AW8: =nodes!B19 -> 100 | AX8: =nodes!C19 -> 80
Q9: ac | R9: g | S9: ad | AK9: z | AL9: l | AM9: y | AV9: at | AW9: au
R11: =-PTDF!J3 -> -12.51831625 | S11: =-PTDF!J4 -> 73.0505595 | AL11: =-PTDF!J6 -> 37.29240421 | AQ11: =-PTDF!J13 -> -97.82464747
B12: B
G13: 2 | H13: =nodes!B4 -> 200 | I13: =nodes!C4 -> 40 | W13: =PTDF!J5 -> 10.30554604
G14: b | H14: c | P14: f | Q14: e | R14: g | S14: h | T14: i | Z14: j | AA14: i | AB14: k
P15: 5 | T15: =nodes!B7 -> 50 | U15: =nodes!C7 -> 200 | Z15: 7 | AB15: =nodes!B9 -> 10 | AC15: =nodes!C9 -> 50 | AJ15: k | AK15: l | AL15: x | AM15: w | AW15: 21 | AY15: =nodes!B23 -> 70 | AZ15: =nodes!C23 -> 110
C16: 1 | D16: =nodes!B3 -> 80 | E16: =nodes!C3 -> 30 | J16: d | K16: c | L16: e | AJ16: 8 | AM16: =nodes!B10 -> 5 | AN16: =nodes!C10 -> 10 | AW16: at | AX16: as | AY16: aw
C17: a | D17: b | J17: 3 | L17: =nodes!B5 -> 0 | M17: =nodes!C5 -> 300 | Z17: 12 | AC17: =nodes!B14 -> 130 | AD17: =nodes!C14 -> 50 | AP17: 9 | AQ17: =nodes!B11 -> 5 | AR17: =nodes!C11 -> 40
Z18: j | AA18: r | AB18: s | AC18: t | AP18: v | AQ18: w
F20: 4 | I20: =nodes!B6 -> 250 | J20: =nodes!C6 -> 50 | P20: 6 | T20: =nodes!B8 -> 200 | U20: =nodes!C8 -> 100 | BA20: 18 | BC20: =nodes!B20 -> 100 | BD20: =nodes!C20 -> 200
F21: d | G21: a | H21: m | I21: n | P21: f | Q21: n | R21: o | S21: p | T21: r | Z21: 11 | AB21: =nodes!B13 -> 75 | AC21: =nodes!C13 -> 150 | AL21: 10 | AN21: =nodes!B12 -> 75 | AO21: =nodes!C12 -> 20 | AS21: C | BA21: aw | BB21: av | BC21: au
W22: =PTDF!J11 -> 17.82200419 | Z22: p | AA22: q | AB22: s | AL22: t | AM22: u | AN22: v
H23: =PTDF!J7 -> 2.961010335 | R23: =PTDF!J8 -> 20.28121059 | W23: =PTDF!J9 -> 69.1624721 | AA23: =PTDF!J10 -> 24.91078371 | AM23: =PTDF!J12 -> -8.153004626
B24: D
AT25: =PTDF!J15 -> -54.64834969
F26: af | G26: m | H26: al | Q26: al | R26: o | S26: ak | W26: =-PTDF!J14 -> 23.24222092 | AW26: ao | AX26: as | AY26: ax
F27: 28 | H27: =nodes!B30 -> 200 | I27: =nodes!C30 -> 100 | Q27: 29 | S27: =nodes!B31 -> 75 | T27: =nodes!C31 -> 200 | AA27: ar | AB27: aj | AC27: q | AD27: am | AN27: an | AO27: u | AP27: ao | AW27: 20 | AY27: =nodes!B22 -> 250 | AZ27: =nodes!C22 -> 120
AA28: 13 | AD28: =nodes!B15 -> 50 | AE28: =nodes!C15 -> 175 | AN28: 14 | AP28: =nodes!B16 -> 80 | AQ28: =nodes!C16 -> 110
C30: 33 | D30: =nodes!B35 -> 100 | E30: =nodes!C35 -> 35 | R30: 30 | T30: =nodes!B32 -> 100 | U30: =nodes!C32 -> 150 | AF30: 15 | AI30: =nodes!B17 -> 180 | AJ30: =nodes!C17 -> 65
C31: ag | D31: af | R31: ak | S31: ai | T31: aj | AF31: aq | AG31: ap | AH31: an | AI31: am | AS31: E | AX31: 19 | AZ31: =nodes!B21 -> 250 | BA31: =nodes!C21 -> 140
AX32: ax | AY32: ap | AZ32: av
E33: 32 | F33: =nodes!B34 -> 100 | G33: =nodes!C34 -> 40 | O33: 31 | P33: =nodes!B33 -> 25 | Q33: =nodes!C33 -> 75 | Z33: 16 | AA33: =nodes!B18 -> 0 | AB33: =nodes!C18 -> 120
E34: ag | F34: ah | O34: ah | P34: ai | Z34: ar | AA34: aq
AT35: =PTDF!J16 -> -65.35165031

Sheet nodes
A1: Nodes overview | K1: Reference
B2: generation | C2: load | D2: balance | E2: zone | G2: angle | K2: node | L2: generation [MW] | M2: load [MW] | N2: balance [MW] | O2: zone | P2: NP [MW] | Q2: G [MW] | R2: L [MW]
A3: 1 | B3: 80 | C3: 30 | D3: =B3-C3 -> 50 | E3: B | G3: 0.5656408125 | K3: 1 | L3: 80 | M3: 30 | N3: =L3-M3 -> 50 | O3: B | P3: =SUM(N3:N8) -> 60 | Q3: =SUM(L3:L8) -> 780 | R3: =SUM(M3:M8) -> 720
A4: 2 | B4: 200 | C4: 40 | D4: =B4-C4 -> 160 | E4: B | G4: 0.5336589502 | K4: 2 | L4: 200 | M4: 40 | N4: =L4-M4 -> 160 | O4: B
A5: 3 | B5: 0 | C5: 300 | D5: -300 | E5: B | G5: -3.935660276 | K5: 3 | L5: 0 | M5: 300 | N5: -300 | O5: B
A6: 4 | B6: 250 | C6: 50 | D6: 200 | E6: B | G6: -0.3786766463 | K6: 4 | L6: 250 | M6: 50 | N6: 200 | O6: B
A7: 5 | B7: 50 | C7: 200 | D7: -150 | E7: B | G7: -3.967408649 | K7: 5 | L7: 50 | M7: 200 | N7: -150 | O7: B
A8: 6 | B8: 200 | C8: 100 | D8: 100 | E8: B | G8: -2.109745852 | K8: 6 | L8: 200 | M8: 100 | N8: 100 | O8: B
A9: 7 | B9: 10 | C9: 50 | D9: -40 | E9: C | G9: -4.2250473 | K9: 7 | L9: 10 | M9: 50 | N9: -40 | O9: C | P9: =SUM(N9:N14) -> -20 | Q9: =SUM(L9:L14) -> 300 | R9: =SUM(M9:M14) -> 320
A10: 8 | B10: 5 | C10: 10 | D10: -5 | E10: C | G10: -5.083555008 | K10: 8 | L10: 5 | M10: 10 | N10: -5 | O10: C
A11: 9 | B11: 5 | C11: 40 | D11: -35 | E11: C | G11: -4.475458177 | K11: 9 | L11: 5 | M11: 40 | N11: -35 | O11: C
A12: 10 | B12: 75 | C12: 20 | D12: 55 | E12: C | G12: -2.356748418 | K12: 10 | L12: 75 | M12: 20 | N12: 55 | O12: C
A13: 11 | B13: 75 | C13: 150 | D13: -75 | E13: C | G13: -3.550630687 | K13: 11 | L13: 75 | M13: 150 | N13: -75 | O13: C
A14: 12 | B14: 130 | C14: 50 | D14: 80 | E14: C | G14: -2.452476702 | K14: 12 | L14: 130 | M14: 50 | N14: 80 | O14: C
A15: 13 | B15: 50 | C15: 175 | D15: -125 | E15: E | G15: -4.440301534 | K15: 13 | L15: 50 | M15: 175 | N15: -125 | O15: E | P15: =SUM(N15:N18) -> -160 | Q15: =SUM(L15:L18) -> 310 | R15: =SUM(M15:M18) -> 470
A16: 14 | B16: 80 | C16: 110 | D16: -30 | E16: E | G16: -2.152923302 | K16: 14 | L16: 80 | M16: 110 | N16: -30 | O16: E
A17: 15 | B17: 180 | C17: 65 | D17: 115 | E17: E | G17: -2.42784572 | K17: 15 | L17: 180 | M17: 65 | N17: 115 | O17: E
A18: 16 | B18: 0 | C18: 120 | D18: -120 | E18: E | G18: -4.934073627 | K18: 16 | L18: 0 | M18: 120 | N18: -120 | O18: E
A19: 17 | B19: 100 | C19: 80 | D19: 20 | E19: F | G19: -2.213690251 | K19: 17 | L19: 100 | M19: 80 | N19: 20 | O19: F | P19: =SUM(N19:N23) -> 120 | Q19: =SUM(L19:L23) -> 770 | R19: =SUM(M19:M23) -> 650
A20: 18 | B20: 100 | C20: 200 | D20: -100 | E20: F | G20: -2.43717266 | K20: 18 | L20: 100 | M20: 200 | N20: -100 | O20: F
A21: 19 | B21: 250 | C21: 140 | D21: 110 | E21: F | G21: -1.68521333 | K21: 19 | L21: 250 | M21: 140 | N21: 110 | O21: F
A22: 20 | B22: 250 | C22: 120 | D22: 130 | E22: F | G22: -1.469818931 | K22: 20 | L22: 250 | M22: 120 | N22: 130 | O22: F
A23: 21 | B23: 70 | C23: 110 | D23: -40 | E23: F | G23: -2.2178596 | K23: 21 | L23: 70 | M23: 110 | N23: -40 | O23: F
A24: 22 | B24: 200 | C24: 650 | D24: -450 | E24: A | G24: -6.531686115 | K24: 22 | L24: 200 | M24: 650 | N24: -450 | O24: A | P24: =SUM(N24:N29) -> 0 | Q24: =SUM(L24:L29) -> 1600 | R24: =SUM(M24:M29) -> 1600
A25: 23 | B25: 150 | C25: 400 | D25: -250 | E25: A | G25: -6.7139658 | K25: 23 | L25: 150 | M25: 400 | N25: -250 | O25: A
A26: 24 | B26: 200 | C26: 100 | D26: 100 | E26: A | G26: -4.151244903 | K26: 24 | L26: 200 | M26: 100 | N26: 100 | O26: A
A27: 25 | B27: 500 | C27: 150 | D27: 350 | E27: A | G27: -2.141144662 | K27: 25 | L27: 500 | M27: 150 | N27: 350 | O27: A
A28: 26 | B28: 300 | C28: 100 | D28: 200 | E28: A | G28: -4.593324462 | K28: 26 | L28: 300 | M28: 100 | N28: 200 | O28: A
A29: 27 | B29: 250 | C29: 200 | D29: 50 | E29: A | G29: -3.93425964 | K29: 27 | L29: 250 | M29: 200 | N29: 50 | O29: A
A30: 28 | B30: 200 | C30: 100 | D30: 100 | E30: D | G30: -0.4403643616 | K30: 28 | L30: 200 | M30: 100 | N30: 100 | O30: D | P30: =SUM(N30:N35) -> 0 | Q30: =SUM(L30:L35) -> 600 | R30: =SUM(M30:M35) -> 600
A31: 29 | B31: 75 | C31: 200 | D31: -125 | E31: D | G31: -2.743533683 | K31: 29 | L31: 75 | M31: 200 | N31: -125 | O31: D
A32: 30 | B32: 100 | C32: 150 | D32: -50 | E32: D | G32: -3.859246011 | K32: 30 | L32: 100 | M32: 150 | N32: -50 | O32: D
A33: 31 | B33: 25 | C33: 75 | D33: -50 | E33: D | G33: -2.616406915 | K33: 31 | L33: 25 | M33: 75 | N33: -50 | O33: D
A34: 32 | B34: 100 | C34: 40 | D34: 60 | E34: D | G34: -0.3721356384 | K34: 32 | L34: 100 | M34: 40 | N34: 60 | O34: D
A35: 33 | B35: 100 | C35: 35 | D35: 65 | E35: D | G35: 0 | K35: 33 | L35: 100 | M35: 35 | N35: 65 | O35: D

Sheet lines
A1: Lines overview | I1: B [S/km] | J1: 0.4 | L1: Output
A2: line | B2: start node | C2: end node | D2: B | E2: in operation | F2: CB | G2: length [km] | I2: flow | L2: Reference | M2: zone A | N2: zone B | O2: zone C | P2: zone D | Q2: zone E | R2: zone F
A3: A | B3: 1 | C3: 4 | D3: =G3*$J$1 -> 52 | E3: 1 | F3: 0 | G3: 130 | I3: 49.10450786 | L3: 49.10450786 | M3: 49.1787006 | N3: 49.59745595 | O3: 49.14871432 | P3: 49.11065494 | Q3: 49.13661758 | R3: 49.1383642
A4: B | B4: 1 | C4: 2 | D4: 28 | E4: 1 | F4: 0 | G4: 70 | I4: 0.895492143 | L4: 0.895492143 | M4: 0.8212994041 | N4: 0.802544049 | O4: 0.8512856777 | P4: 0.8893450617 | Q4: 0.8633824217 | R4: 0.8616357968
A5: C | B5: 2 | C5: 3 | D5: 36 | E5: 1 | F5: 0 | G5: 90 | I5: 160.8954921 | L5: 160.8954921 | M5: 160.8212994 | N5: 161.202544 | O5: 160.8512857 | P5: 160.8893451 | Q5: 160.8633824 | R5: 160.8616358
A6: D | B6: 3 | C6: 4 | D6: 40 | E6: 1 | F6: 0 | G6: 100 | I6: -142.2793452 | L6: -142.2793452 | M6: -142.0338478 | N6: -142.1085401 | O6: -142.1330698 | P6: -142.259005 | Q6: -142.1730969 | R6: -142.1673175
A7: E | B7: 3 | C7: 5 | D7: 100 | E7: 1 | F7: 0 | G7: 250 | I7: 3.174837329 | L7: 3.174837329 | M7: 2.855147249 | N7: 3.311084187 | O7: 2.984355503 | P7: 3.148350089 | Q7: 3.036479324 | R7: 3.028953268
A8: F | B8: 5 | C8: 6 | D8: 52 | E8: 1 | F8: 0 | G8: 130 | I8: -96.59846546 | L8: -96.59846546 | M8: -96.27132701 | N8: -96.3865328 | O8: -96.53473906 | P8: -96.60628457 | Q8: -96.58226819 | R8: -96.57383627
A9: G | B9: 5 | C9: 26 | D9: 20 | E9: 1 | F9: 1 | G9: 50 | I9: 12.51831625 | L9: 12.51831625 | M9: 12.30516512 | N9: 12.53657256 | O9: 12.47662296 | P9: 12.51528769 | Q9: 12.49123585 | R9: 12.48806731
A10: H | B10: 5 | C10: 25 | D10: 40 | E10: 1 | F10: 1 | G10: 100 | I10: -73.0505595 | L10: -73.0505595 | M10: -73.42958125 | N10: -73.01928374 | O10: -73.1219863 | P10: -73.05574787 | Q10: -73.09695226 | R10: -73.10238044
A11: I | B11: 5 | C11: 7 | D11: 40 | E11: 1 | F11: 1 | G11: 100 | I11: 10.30554604 | L11: 10.30554604 | M11: 10.25089039 | N11: 10.38032816 | O11: 10.16445791 | P11: 10.29509483 | Q11: 10.22446393 | R11: 10.21710267
A12: J | B12: 7 | C12: 12 | D12: 40 | E12: 1 | F12: 0 | G12: 100 | I12: -70.90282395 | L12: -70.90282395 | M12: -70.70611914 | N12: -70.82416939 | O12: -70.91711899 | P12: -70.9115722 | Q12: -70.95383551 | R12: -70.95512746
A13: K | B13: 7 | C13: 8 | D13: 48 | E13: 1 | F13: 0 | G13: 120 | I13: 41.20836999 | L13: 41.20836999 | M13: 40.95700953 | N13: 41.20449755 | O13: 41.1815769 | P13: 41.20666703 | Q13: 41.17829944 | R13: 41.17223014
A14: L | B14: 8 | C14: 24 | D14: 40 | E14: 1 | F14: 1 | G14: 100 | I14: -37.29240421 | L14: -37.29240421 | M14: -37.45572047 | N14: -37.31102692 | O14: -37.24987415 | P14: -37.28931487 | Q14: -37.26478031 | R14: -37.26154818
A15: M | B15: 4 | C15: 28 | D15: 48 | E15: 1 | F15: 1 | G15: 120 | I15: 2.961010335 | L15: 2.961010335 | M15: 3.463293031 | N15: 3.554685246 | O15: 3.41166384 | P15: 3.0429222 | Q15: 3.323066415 | R15: 3.334048103
A16: N | B16: 4 | C16: 6 | D16: 60 | E16: 1 | F16: 0 | G16: 150 | I16: 103.8641523 | L16: 103.8641523 | M16: 103.6815597 | N16: 103.9342306 | O16: 103.6039807 | P16: 103.8087277 | Q16: 103.6404543 | R16: 103.6369986
A17: O | B17: 6 | C17: 29 | D17: 32 | E17: 1 | F17: 1 | G17: 80 | I17: 20.28121059 | L17: 20.28121059 | M17: 20.56189742 | N17: 20.52344948 | O17: 20.55301126 | P17: 20.26657404 | Q17: 20.45809843 | R17: 20.46936254
A18: P | B18: 6 | C18: 11 | D18: 48 | E18: 1 | F18: 1 | G18: 120 | I18: 69.1624721 | L18: 69.1624721 | M18: 69.16880565 | N18: 69.21470908 | O18: 68.95995068 | P18: 69.13100512 | Q18: 68.9660025 | R18: 68.97939578
A19: Q | B19: 11 | C19: 13 | D19: 28 | E19: 1 | F19: 1 | G19: 70 | I19: 24.91078371 | L19: 24.91078371 | M19: 24.99752889 | N19: 25.00020417 | O19: 25.03320722 | P19: 24.87019031 | Q19: 24.70089401 | R19: 24.73269755
A20: R | B20: 6 | C20: 12 | D20: 52 | E20: 1 | F20: 1 | G20: 130 | I20: 17.82200419 | L20: 17.82200419 | M20: 17.67952963 | N20: 17.8095392 | O20: 17.55627965 | P20: 17.80486399 | Q20: 17.63408514 | R20: 17.61440404
A21: S | B21: 11 | C21: 12 | D21: 28 | E21: 1 | F21: 0 | G21: 70 | I21: -30.7483116 | L21: -30.7483116 | M21: -30.82872324 | N21: -30.78549508 | O21: -30.77325654 | P21: -30.7391852 | Q21: -30.73489151 | R21: -30.75330177
A22: T | B22: 10 | C22: 12 | D22: 40 | E22: 1 | F22: 0 | G22: 100 | I22: 3.829131364 | L22: 3.829131364 | M22: 3.855312751 | N22: 3.800125269 | O22: 3.934095888 | P22: 3.845893404 | Q22: 4.054641881 | R22: 4.094025189
A23: U | B23: 10 | C23: 14 | D23: 40 | E23: 1 | F23: 1 | G23: 100 | I23: -8.153004626 | L23: -8.153004626 | M23: -8.022719349 | N23: -8.078338896 | O23: -7.997882326 | P23: -8.179686553 | Q23: -8.482058852 | R23: -8.53610819
A24: V | B24: 9 | C24: 10 | D24: 28 | E24: 1 | F24: 0 | G24: 70 | I24: -59.32387326 | L24: -59.32387326 | M24: -59.1674066 | N24: -59.27821363 | O24: -59.36378644 | P24: -59.33379315 | Q24: -59.42741697 | R24: -59.442083
A25: W | B25: 8 | C25: 9 | D25: 40 | E25: 1 | F25: 0 | G25: 100 | I25: -24.32387326 | L25: -24.32387326 | M25: -24.1674066 | N25: -24.27821363 | O25: -24.36378644 | P25: -24.33379315 | Q25: -24.42741697 | R25: -24.442083
A26: X | B26: 8 | C26: 23 | D26: 60 | E26: 1 | F26: 1 | G26: 150 | I26: 97.82464747 | L26: 97.82464747 | M26: 97.5801366 | N26: 97.7937381 | O26: 97.89523749 | P26: 97.82977505 | Q26: 97.87049672 | R26: 97.87586131
A27: Y | B27: 23 | C27: 24 | D27: 48 | E27: 1 | F27: 0 | G27: 120 | I27: -123.010603 | L27: -123.010603 | M27: -123.0109739 | N27: -123.0082228 | O27: -123.016039 | P27: -123.0109979 | Q27: -123.0141338 | R27: -123.0145469
A28: Z | B28: 24 | C28: 25 | D28: 30 | E28: 1 | F28: 0 | G28: 75 | I28: -60.30300724 | L28: -60.30300724 | M28: -60.26669432 | N28: -60.31924971 | O28: -60.26591311 | P28: -60.30031276 | Q28: -60.27891406 | R28: -60.27609504
A29: AA | B29: 22 | C29: 23 | D29: 160 | E29: 1 | F29: 0 | G29: 400 | I29: 29.16474951 | L29: 29.16474951 | M29: 29.20888955 | N29: 29.19803911 | O29: 29.08872354 | P29: 29.15922706 | Q29: 29.11536953 | R29: 29.10959182
A30: AB | B30: 22 | C30: 27 | D30: 80 | E30: 1 | F30: 0 | G30: 200 | I30: -207.794118 | L30: -207.794118 | M30: -207.7797775 | N30: -207.8060092 | O30: -207.7669612 | P30: -207.7921454 | Q30: -207.7764793 | R30: -207.7744155
A31: AC | B31: 22 | C31: 26 | D31: 140 | E31: 1 | F31: 0 | G31: 350 | I31: -271.3706315 | L31: -271.3706315 | M31: -271.329112 | N31: -271.3920299 | O31: -271.3217623 | P31: -271.3670817 | Q31: -271.3388902 | R31: -271.3351763
A32: AD | B32: 25 | C32: 26 | D32: 24 | E32: 1 | F32: 0 | G32: 60 | I32: 58.8523152 | L32: 58.8523152 | M32: 58.82394689 | N32: 58.85545731 | O32: 58.84513933 | P32: 58.85179396 | Q32: 58.84765437 | R32: 58.84710903
A33: AE | B33: 25 | C33: 27 | D33: 88 | E33: 1 | F33: 0 | G33: 220 | I33: 157.794118 | L33: 157.794118 | M33: 157.6797775 | N33: 157.8060092 | O33: 157.7669612 | P33: 157.7921454 | Q33: 157.7764793 | R33: 157.7744155
A34: AF | B34: 28 | C34: 33 | D34: 80 | E34: 1 | F34: 0 | G34: 200 | I34: -35.22914893 | L34: -35.22914893 | M34: -34.44270807 | N34: -34.41765655 | O34: -34.46463314 | P34: -34.76197909 | Q34: -34.52248938 | R34: -34.51544516
A35: AG | B35: 32 | C35: 33 | D35: =G35*$J$1 -> 80 | E35: 1 | F35: 0 | G35: 200 | I35: -29.77085107 | L35: -29.77085107 | M35: -29.55729193 | N35: -29.58234345 | O35: -29.53536686 | P35: -29.33802091 | Q35: -29.47751062 | R35: -29.48455484
A36: AH | B36: 31 | C36: 32 | D36: 40 | E36: 1 | F36: 0 | G36: 100 | I36: -89.77085107 | L36: -89.77085107 | M36: -89.55729193 | N36: -89.58234345 | O36: -89.53536686 | P36: -89.53802091 | Q36: -89.47751062 | R36: -89.48455484
A37: AI | B37: 30 | C37: 31 | D37: 32 | E37: 1 | F37: 0 | G37: 80 | I37: -39.77085107 | L37: -39.77085107 | M37: -39.55729193 | N37: -39.58234345 | O37: -39.53536686 | P37: -39.73802091 | Q37: -39.47751062 | R37: -39.48455484
A38: AJ | B38: 13 | C38: 30 | D38: 40 | E38: 1 | F38: 1 | G38: 100 | I38: -23.24222092 | L38: -23.24222092 | M38: -23.02519046 | N38: -23.07813473 | O38: -22.9646751 | P38: -23.30949624 | Q38: -22.78116484 | R38: -22.80341064
A39: AK | B39: 29 | C39: 30 | D39: 30 | E39: 1 | F39: 0 | G39: 75 | I39: 33.47136985 | L39: 33.47136985 | M39: 33.46789853 | N39: 33.49579127 | O39: 33.42930824 | P39: 33.37147533 | Q39: 33.30365423 | R39: 33.3188558
A40: AL | B40: 28 | C40: 29 | D40: 60 | E40: 1 | F40: 0 | G40: 150 | I40: 138.1901593 | L40: 138.1901593 | M40: 137.9060011 | N40: 137.9723418 | O40: 137.876297 | P40: 138.0049013 | Q40: 137.8455558 | R40: 137.8494933
A41: AM | B41: 13 | C41: 15 | D41: 48 | E41: 1 | F41: 0 | G41: 120 | I41: -96.59787909 | L41: -96.59787909 | M41: -96.68984517 | N41: -96.65058431 | O41: -96.70737718 | P41: -96.57904479 | Q41: -96.78913493 | R41: -97.0333354
A42: AN | B42: 14 | C42: 15 | D42: 60 | E42: 1 | F42: 0 | G42: 150 | I42: 16.49534507 | L42: 16.49534507 | M42: 16.58242484 | N42: 16.54524997 | O42: 16.59902535 | P42: 16.47751147 | Q42: 16.6096014 | R42: 16.55210079
A43: AO | B43: 14 | C43: 20 | D43: 80 | E43: 1 | F43: 1 | G43: 200 | I43: -54.64834969 | L43: -54.64834969 | M43: -54.60514418 | N43: -54.62358887 | O43: -54.59690767 | P43: -54.65719802 | Q43: -54.59166025 | R43: -55.08820898
A44: AP | B44: 15 | C44: 19 | D44: 88 | E44: 1 | F44: 1 | G44: 220 | I44: -65.35165031 | L44: -65.35165031 | M44: -65.39485582 | N44: -65.37641113 | O44: -65.40309233 | P44: -65.34280198 | Q44: -65.40833975 | R44: -65.91179102
A45: AQ | B45: 15 | C45: 16 | D45: 40 | E45: 1 | F45: 0 | G45: 100 | I45: 100.2491163 | L45: 100.2491163 | M45: 100.2874355 | N45: 100.2710768 | O45: 100.2947405 | P45: 100.2412687 | Q45: 100.3288062 | R45: 100.4305564
A46: AR | B46: 13 | C46: 16 | D46: 40 | E46: 1 | F46: 0 | G46: 100 | I46: 19.75088371 | L46: 19.75088371 | M46: 19.71256451 | N46: 19.7289232 | O46: 19.70525951 | P46: 19.75873134 | Q46: 19.67119378 | R46: 19.56944359
A47: AS | B47: 20 | C47: 21 | D47: 80 | E47: 1 | F47: 0 | G47: 200 | I47: 59.84325356 | L47: 59.84325356 | M47: 59.85619828 | N47: 59.8506721 | O47: 59.858666 | P47: 59.84060254 | Q47: 59.86023817 | R47: 59.597711
A48: AT | B48: 17 | C48: 21 | D48: 80 | E48: 1 | F48: 0 | G48: 200 | I48: 0.3335479598 | L48: 0.3335479598 | M48: 0.3294969829 | N48: 0.3312263686 | O48: 0.3287247221 | P48: 0.3343775844 | Q48: 0.3282327208 | R48: 0.4111003989
A49: AU | B49: 17 | C49: 18 | D49: 88 | E49: 1 | F49: 0 | G49: 220 | I49: 19.66645204 | L49: 19.66645204 | M49: 19.67050302 | N49: 19.66877363 | O49: 19.67127528 | P49: 19.66562242 | Q49: 19.67176728 | R49: 19.6388996
A50: AV | B50: 18 | C50: 19 | D50: 80 | E50: 1 | F50: 0 | G50: 200 | I50: -60.15674644 | L50: -60.15674644 | M50: -60.14380172 | N50: -60.1493279 | O50: -60.141334 | P50: -60.15939746 | Q50: -60.13976183 | R50: -59.802289
A51: AW | B51: 18 | C51: 21 | D51: 92 | E51: 1 | F51: 0 | G51: 230 | I51: -20.17680152 | L51: -20.17680152 | M51: -20.18569526 | N51: -20.18189847 | O51: -20.18739072 | P51: -20.17498012 | Q51: -20.18847089 | R51: -20.0588114
A52: AX | B52: 19 | C52: 20 | D52: 72 | E52: 1 | F52: 0 | G52: 180 | I52: -15.50839674 | L52: -15.50839674 | M52: -15.53865754 | N52: -15.52573903 | O52: -15.54442633 | P52: -15.50219944 | Q52: -15.54810158 | R52: -15.51408002

Sheet zones
A1: Zones overview
A2: zone | B2: generation [MW] | C2: load [MW] | D2: net position [MW]
A3: A | B3: =SUMIF(nodes!O:O,zones!A3,nodes!L:L) -> 1600 | C3: =SUMIF(nodes!O:O,zones!A3,nodes!M:M) -> 1600 | D3: =B3-C3 -> 0
A4: B | B4: =SUMIF(nodes!O:O,zones!A4,nodes!L:L) -> 780 | C4: =SUMIF(nodes!O:O,zones!A4,nodes!M:M) -> 720 | D4: =B4-C4 -> 60
A5: C | B5: =SUMIF(nodes!O:O,zones!A5,nodes!L:L) -> 300 | C5: =SUMIF(nodes!O:O,zones!A5,nodes!M:M) -> 320 | D5: -20
A6: D | B6: =SUMIF(nodes!O:O,zones!A6,nodes!L:L) -> 600 | C6: =SUMIF(nodes!O:O,zones!A6,nodes!M:M) -> 600 | D6: 0
A7: E | B7: =SUMIF(nodes!O:O,zones!A7,nodes!L:L) -> 310 | C7: =SUMIF(nodes!O:O,zones!A7,nodes!M:M) -> 470 | D7: -160
A8: F | B8: =SUMIF(nodes!O:O,zones!A8,nodes!L:L) -> 770 | C8: =SUMIF(nodes!O:O,zones!A8,nodes!M:M) -> 650 | D8: 120
A13: Average - ref.
B14: generation | C14: load | D14: balance
A15: A | B15: 1600 | C15: 1600 | D15: =B15-C15 -> 0
A16: B | B16: 780 | C16: 720 | D16: =B16-C16 -> 60
A17: C | B17: 300 | C17: 320 | D17: -20
A18: D | B18: 600 | C18: 600 | D18: 0
A19: E | B19: 310 | C19: 470 | D19: -160
A20: F | B20: 770 | C20: 650 | D20: 120
A22: Net Positions
A23: Net Position [MW] | O23: Net Position [MW]
B24: zone A | C24: zone B | D24: zone C | E24: zone D | F24: zone E | G24: zone F | I24: balance check | P24: zone A | Q24: zone B | R24: zone C | S24: zone D | T24: zone E | U24: zone F
A25: reference | B25: =D3 -> 0 | C25: =D4 -> 60 | D25: =D5 -> -20 | E25: =D6 -> 0 | F25: =D7 -> -160 | G25: =D8 -> 120 | I25: =IF(SUM(B25:G25)=0,"right","wrong") -> right | O25: 11 | P25: 0 | Q25: 58 | R25: -11 | S25: 0 | T25: 1.5 | U25: -48.5
A26: 11 | B26: ='external data'!B12 -> 0 | C26: ='external data'!B13 -> 58 | D26: ='external data'!B14 -> -11 | E26: ='external data'!B15 -> 0 | F26: ='external data'!B16 -> 1.5 | G26: ='external data'!B17 -> -48.5 | I26: =IF(SUM(B26:G26)=0,"right","wrong") -> right | O26: 22 | P26: 0 | Q26: 85 | R26: -46 | S26: 0 | T26: -40.5 | U26: 1.5
A27: 22 | B27: ='external data'!C12 -> 0 | C27: ='external data'!C13 -> 85 | D27: ='external data'!C14 -> -46 | E27: ='external data'!C15 -> 0 | F27: ='external data'!C16 -> -40.5 | G27: ='external data'!C17 -> 1.5 | I27: right | O27: 33 | P27: 0 | Q27: 130 | R27: -170 | S27: 0 | T27: 70 | U27: -30
A28: 33 | B28: ='external data'!D12 -> 0 | C28: ='external data'!D13 -> 130 | D28: ='external data'!D14 -> -170 | E28: ='external data'!D15 -> 0 | F28: ='external data'!D16 -> 70 | G28: ='external data'!D17 -> -30 | I28: right | O28: 44 | P28: 0 | Q28: 108 | R28: -140 | S28: 0 | T28: 30 | U28: 2
A29: 44 | B29: ='external data'!E12 -> 0 | C29: ='external data'!E13 -> 108 | D29: ='external data'!E14 -> -140 | E29: ='external data'!E15 -> 0 | F29: ='external data'!E16 -> 30 | G29: ='external data'!E17 -> 2 | I29: right | O29: 55 | P29: 0 | Q29: -21.5 | R29: 68.5 | S29: 0 | T29: 3.5 | U29: -50.5
A30: 55 | B30: ='external data'!F12 -> 0 | C30: ='external data'!F13 -> -21.5 | D30: ='external data'!F14 -> 68.5 | E30: ='external data'!F15 -> 0 | F30: ='external data'!F16 -> 3.5 | G30: ='external data'!F17 -> -50.5 | I30: right | O30: 66 | P30: 0 | Q30: -27 | R30: 65 | S30: 0 | T30: -40 | U30: 2
A31: 66 | B31: ='external data'!G12 -> 0 | C31: ='external data'!G13 -> -27 | D31: ='external data'!G14 -> 65 | E31: ='external data'!G15 -> 0 | F31: ='external data'!G16 -> -40 | G31: ='external data'!G17 -> 2 | I31: right | O31: 77 | P31: 0 | Q31: -52 | R31: 42 | S31: 0 | T31: 100 | U31: -90
A32: 77 | B32: ='external data'!H12 -> 0 | C32: ='external data'!H13 -> -52 | D32: ='external data'!H14 -> 42 | E32: ='external data'!H15 -> 0 | F32: ='external data'!H16 -> 100 | G32: ='external data'!H17 -> -90 | I32: right | O32: 88 | P32: 0 | Q32: -62 | R32: 30 | S32: 0 | T32: 30 | U32: 2
A33: 88 | B33: ='external data'!I12 -> 0 | C33: ='external data'!I13 -> -62 | D33: ='external data'!I14 -> 30 | E33: ='external data'!I15 -> 0 | F33: ='external data'!I16 -> 30 | G33: ='external data'!I17 -> 2 | I33: right | O33: 00 | P33: 0 | Q33: 29 | R33: -4 | S33: 0 | T33: -27 | U33: 2
A34: 00 | B34: ='external data'!J12 -> 0 | C34: ='external data'!J13 -> 29 | D34: ='external data'!J14 -> -4 | E34: 0 | F34: ='external data'!J16 -> -27 | G34: ='external data'!J17 -> 2 | I34: right
A35: AVG | B35: ='external data'!K12 -> 0 | C35: ='external data'!K13 -> 26 | D35: ='external data'!K14 -> 12 | E35: ='external data'!K15 -> 0 | F35: ='external data'!K16 -> -7 | G35: ='external data'!K17 -> -31 | I35: right

Sheet GSK
A1: GSK | B1: 0
A2: zone A | C2: zone B | E2: zone C | G2: zone D | I2: zone E | K2: zone F | R2: before | S2: after
A3: node | B3: value | C3: node | D3: value | E3: node | F3: value | G3: node | H3: value | I3: node | J3: value | K3: node | L3: value | Q3: node | R3: generation [MW] | S3: generation [MW]
A4: sum | B4: =SUM(B5:B10) -> 1 | C4: sum | D4: =SUM(D5:D10) -> 1 | E4: sum | F4: =SUM(F5:F10) -> 1 | G4: sum | H4: =SUM(H5:H10) -> 1 | I4: sum | J4: =SUM(J5:J10) -> 1 | K4: sum | L4: =SUM(L5:L10) -> 1 | Q4: N1 | R4: 5 | S4: 5.2
A5: 22 | B5: 0.1 | C5: 1 | D5: 0.4 | E5: 7 | F5: 0.1 | G5: 28 | H5: 0.2 | I5: 13 | J5: 0.4 | K5: 17 | L5: 0.05 | Q5: N2 | R5: 10 | S5: 10.2
A6: 23 | B6: 0.2 | C6: 2 | D6: 0.4 | E6: 8 | F6: 0.1 | G6: 29 | H6: 0.1 | I6: 14 | J6: 0.5 | K6: 18 | L6: 0.5 | Q6: N3 | R6: 3 | S6: 3
A7: 24 | B7: 0.2 | C7: 3 | D7: 0 | E7: 9 | F7: 0 | G7: 30 | H7: 0.2 | I7: 15 | J7: 0.1 | K7: 19 | L7: 0.2 | Q7: N4 | R7: 7 | S7: 7.3
A8: 25 | B8: 0.2 | C8: 4 | D8: 0 | E8: 10 | F8: 0.3 | G8: 31 | H8: 0.2 | I8: 16 | J8: 0 | K8: 20 | L8: 0.2 | Q8: N5 | R8: 5 | S8: 5.3
A9: 26 | B9: 0.2 | C9: 5 | D9: 0.2 | E9: 11 | F9: 0.3 | G9: 32 | H9: 0.2 | K9: 21 | L9: 0.05 | Q9: NP | R9: =SUM(R4:R8) -> 30 | S9: =SUM(S4:S8) -> 31
A10: 27 | B10: 0.1 | C10: 6 | D10: 0 | E10: 12 | F10: 0.2 | G10: 33 | H10: 0.1
A16: zone A | C16: zone B | E16: zone C
A17: hub | B17: value | C17: hub | D17: value | E17: hub | F17: value
A18: sum | B18: =SUM(B19:B24) -> 1 | C18: sum | D18: =SUM(D19:D24) -> 1 | E18: sum | F18: =SUM(F19:F24) -> 1
A19: 22 | B19: 0.1 | C19: 1 | D19: 0.4 | E19: 7 | F19: 0.1
A20: 23 | B20: 0.2 | C20: 2 | D20: 0.4 | E20: 8 | F20: 0.1
A21: 24 | B21: 0.2 | C21: 3 | D21: 0 | E21: 9 | F21: 0
A22: 25 | B22: 0.2 | C22: 4 | D22: 0 | E22: 10 | F22: 0.3
A23: 26 | B23: 0.2 | C23: 5 | D23: 0.2 | E23: 11 | F23: 0.3
A24: 27 | B24: 0.1 | C24: 6 | D24: 0 | E24: 12 | F24: 0.2
A26: zone D | C26: zone E | E26: zone F
A27: node | B27: value | C27: node | D27: value | E27: node | F27: value
A28: sum | B28: =SUM(B29:B34) -> 1 | C28: sum | D28: =SUM(D29:D34) -> 1 | E28: sum | F28: =SUM(F29:F34) -> 1
A29: 28 | B29: 0.2 | C29: 13 | D29: 0.4 | E29: 17 | F29: 0.05
A30: 29 | B30: 0.1 | C30: 14 | D30: 0.5 | E30: 18 | F30: 0.5
A31: 30 | B31: 0.2 | C31: 15 | D31: 0.1 | E31: 19 | F31: 0.2
A32: 31 | B32: 0.2 | C32: 16 | D32: 0 | E32: 20 | F32: 0.2
A33: 32 | B33: 0.2 | E33: 21 | F33: 0.05
A34: 33 | B34: 0.1

Sheet b-matrix
A1: B-Matrix
B2: 1 | C2: 2 | D2: 3 | E2: 4 | F2: 5 | G2: 6 | H2: 7 | I2: 8 | J2: 9 | K2: 10 | L2: 11 | M2: 12 | N2: 13 | O2: 14 | P2: 15 | Q2: 16 | R2: 17 | S2: 18 | T2: 19 | U2: 20 | V2: 21 | W2: 22 | X2: 23 | Y2: 24 | Z2: 25 | AA2: 26 | AB2: 27 | AC2: 28 | AD2: 29 | AE2: 30 | AF2: 31 | AG2: 32 | AH2: 33
A3: 1 | B3: 80 | C3: -28 | D3: 0 | E3: -52 | F3: 0 | G3: 0 | H3: 0 | I3: 0 | J3: 0 | K3: 0 | L3: 0 | M3: 0 | N3: 0 | O3: 0 | P3: 0 | Q3: 0 | R3: 0 | S3: 0 | T3: 0 | U3: 0 | V3: 0 | W3: 0 | X3: 0 | Y3: 0 | Z3: 0 | AA3: 0 | AB3: 0 | AC3: 0 | AD3: 0 | AE3: 0 | AF3: 0 | AG3: 0 | AH3: 0
A4: 2 | B4: -28 | C4: 64 | D4: -36 | E4: 0 | F4: 0 | G4: 0 | H4: 0 | I4: 0 | J4: 0 | K4: 0 | L4: 0 | M4: 0 | N4: 0 | O4: 0 | P4: 0 | Q4: 0 | R4: 0 | S4: 0 | T4: 0 | U4: 0 | V4: 0 | W4: 0 | X4: 0 | Y4: 0 | Z4: 0 | AA4: 0 | AB4: 0 | AC4: 0 | AD4: 0 | AE4: 0 | AF4: 0 | AG4: 0 | AH4: 0
A5: 3 | B5: 0 | C5: -36 | D5: 176 | E5: -40 | F5: -100 | G5: 0 | H5: 0 | I5: 0 | J5: 0 | K5: 0 | L5: 0 | M5: 0 | N5: 0 | O5: 0 | P5: 0 | Q5: 0 | R5: 0 | S5: 0 | T5: 0 | U5: 0 | V5: 0 | W5: 0 | X5: 0 | Y5: 0 | Z5: 0 | AA5: 0 | AB5: 0 | AC5: 0 | AD5: 0 | AE5: 0 | AF5: 0 | AG5: 0 | AH5: 0
A6: 4 | B6: -52 | C6: 0 | D6: -40 | E6: 200 | F6: 0 | G6: -60 | H6: 0 | I6: 0 | J6: 0 | K6: 0 | L6: 0 | M6: 0 | N6: 0 | O6: 0 | P6: 0 | Q6: 0 | R6: 0 | S6: 0 | T6: 0 | U6: 0 | V6: 0 | W6: 0 | X6: 0 | Y6: 0 | Z6: 0 | AA6: 0 | AB6: 0 | AC6: -48 | AD6: 0 | AE6: 0 | AF6: 0 | AG6: 0 | AH6: 0
A7: 5 | B7: 0 | C7: 0 | D7: -100 | E7: 0 | F7: 252 | G7: -52 | H7: -40 | I7: 0 | J7: 0 | K7: 0 | L7: 0 | M7: 0 | N7: 0 | O7: 0 | P7: 0 | Q7: 0 | R7: 0 | S7: 0 | T7: 0 | U7: 0 | V7: 0 | W7: 0 | X7: 0 | Y7: 0 | Z7: -40 | AA7: -20 | AB7: 0 | AC7: 0 | AD7: 0 | AE7: 0 | AF7: 0 | AG7: 0 | AH7: 0
A8: 6 | B8: 0 | C8: 0 | D8: 0 | E8: -60 | F8: -52 | G8: 244 | H8: 0 | I8: 0 | J8: 0 | K8: 0 | L8: -48 | M8: -52 | N8: 0 | O8: 0 | P8: 0 | Q8: 0 | R8: 0 | S8: 0 | T8: 0 | U8: 0 | V8: 0 | W8: 0 | X8: 0 | Y8: 0 | Z8: 0 | AA8: 0 | AB8: 0 | AC8: 0 | AD8: -32 | AE8: 0 | AF8: 0 | AG8: 0 | AH8: 0
A9: 7 | B9: 0 | C9: 0 | D9: 0 | E9: 0 | F9: -40 | G9: 0 | H9: 128 | I9: -48 | J9: 0 | K9: 0 | L9: 0 | M9: -40 | N9: 0 | O9: 0 | P9: 0 | Q9: 0 | R9: 0 | S9: 0 | T9: 0 | U9: 0 | V9: 0 | W9: 0 | X9: 0 | Y9: 0 | Z9: 0 | AA9: 0 | AB9: 0 | AC9: 0 | AD9: 0 | AE9: 0 | AF9: 0 | AG9: 0 | AH9: 0
A10: 8 | B10: 0 | C10: 0 | D10: 0 | E10: 0 | F10: 0 | G10: 0 | H10: -48 | I10: 188 | J10: -40 | K10: 0 | L10: 0 | M10: 0 | N10: 0 | O10: 0 | P10: 0 | Q10: 0 | R10: 0 | S10: 0 | T10: 0 | U10: 0 | V10: 0 | W10: 0 | X10: -60 | Y10: -40 | Z10: 0 | AA10: 0 | AB10: 0 | AC10: 0 | AD10: 0 | AE10: 0 | AF10: 0 | AG10: 0 | AH10: 0
A11: 9 | B11: 0 | C11: 0 | D11: 0 | E11: 0 | F11: 0 | G11: 0 | H11: 0 | I11: -40 | J11: 68 | K11: -28 | L11: 0 | M11: 0 | N11: 0 | O11: 0 | P11: 0 | Q11: 0 | R11: 0 | S11: 0 | T11: 0 | U11: 0 | V11: 0 | W11: 0 | X11: 0 | Y11: 0 | Z11: 0 | AA11: 0 | AB11: 0 | AC11: 0 | AD11: 0 | AE11: 0 | AF11: 0 | AG11: 0 | AH11: 0
A12: 10 | B12: 0 | C12: 0 | D12: 0 | E12: 0 | F12: 0 | G12: 0 | H12: 0 | I12: 0 | J12: -28 | K12: 108 | L12: 0 | M12: -40 | N12: 0 | O12: -40 | P12: 0 | Q12: 0 | R12: 0 | S12: 0 | T12: 0 | U12: 0 | V12: 0 | W12: 0 | X12: 0 | Y12: 0 | Z12: 0 | AA12: 0 | AB12: 0 | AC12: 0 | AD12: 0 | AE12: 0 | AF12: 0 | AG12: 0 | AH12: 0
A13: 11 | B13: 0 | C13: 0 | D13: 0 | E13: 0 | F13: 0 | G13: -48 | H13: 0 | I13: 0 | J13: 0 | K13: 0 | L13: 104 | M13: -28 | N13: -28 | O13: 0 | P13: 0 | Q13: 0 | R13: 0 | S13: 0 | T13: 0 | U13: 0 | V13: 0 | W13: 0 | X13: 0 | Y13: 0 | Z13: 0 | AA13: 0 | AB13: 0 | AC13: 0 | AD13: 0 | AE13: 0 | AF13: 0 | AG13: 0 | AH13: 0
A14: 12 | B14: 0 | C14: 0 | D14: 0 | E14: 0 | F14: 0 | G14: -52 | H14: -40 | I14: 0 | J14: 0 | K14: -40 | L14: -28 | M14: 160 | N14: 0 | O14: 0 | P14: 0 | Q14: 0 | R14: 0 | S14: 0 | T14: 0 | U14: 0 | V14: 0 | W14: 0 | X14: 0 | Y14: 0 | Z14: 0 | AA14: 0 | AB14: 0 | AC14: 0 | AD14: 0 | AE14: 0 | AF14: 0 | AG14: 0 | AH14: 0
A15: 13 | B15: 0 | C15: 0 | D15: 0 | E15: 0 | F15: 0 | G15: 0 | H15: 0 | I15: 0 | J15: 0 | K15: 0 | L15: -28 | M15: 0 | N15: 156 | O15: 0 | P15: -48 | Q15: -40 | R15: 0 | S15: 0 | T15: 0 | U15: 0 | V15: 0 | W15: 0 | X15: 0 | Y15: 0 | Z15: 0 | AA15: 0 | AB15: 0 | AC15: 0 | AD15: 0 | AE15: -40 | AF15: 0 | AG15: 0 | AH15: 0
A16: 14 | B16: 0 | C16: 0 | D16: 0 | E16: 0 | F16: 0 | G16: 0 | H16: 0 | I16: 0 | J16: 0 | K16: -40 | L16: 0 | M16: 0 | N16: 0 | O16: 180 | P16: -60 | Q16: 0 | R16: 0 | S16: 0 | T16: 0 | U16: -80 | V16: 0 | W16: 0 | X16: 0 | Y16: 0 | Z16: 0 | AA16: 0 | AB16: 0 | AC16: 0 | AD16: 0 | AE16: 0 | AF16: 0 | AG16: 0 | AH16: 0
A17: 15 | B17: 0 | C17: 0 | D17: 0 | E17: 0 | F17: 0 | G17: 0 | H17: 0 | I17: 0 | J17: 0 | K17: 0 | L17: 0 | M17: 0 | N17: -48 | O17: -60 | P17: 236 | Q17: -40 | R17: 0 | S17: 0 | T17: -88 | U17: 0 | V17: 0 | W17: 0 | X17: 0 | Y17: 0 | Z17: 0 | AA17: 0 | AB17: 0 | AC17: 0 | AD17: 0 | AE17: 0 | AF17: 0 | AG17: 0 | AH17: 0
A18: 16 | B18: 0 | C18: 0 | D18: 0 | E18: 0 | F18: 0 | G18: 0 | H18: 0 | I18: 0 | J18: 0 | K18: 0 | L18: 0 | M18: 0 | N18: -40 | O18: 0 | P18: -40 | Q18: 80 | R18: 0 | S18: 0 | T18: 0 | U18: 0 | V18: 0 | W18: 0 | X18: 0 | Y18: 0 | Z18: 0 | AA18: 0 | AB18: 0 | AC18: 0 | AD18: 0 | AE18: 0 | AF18: 0 | AG18: 0 | AH18: 0
A19: 17 | B19: 0 | C19: 0 | D19: 0 | E19: 0 | F19: 0 | G19: 0 | H19: 0 | I19: 0 | J19: 0 | K19: 0 | L19: 0 | M19: 0 | N19: 0 | O19: 0 | P19: 0 | Q19: 0 | R19: 168 | S19: -88 | T19: 0 | U19: 0 | V19: -80 | W19: 0 | X19: 0 | Y19: 0 | Z19: 0 | AA19: 0 | AB19: 0 | AC19: 0 | AD19: 0 | AE19: 0 | AF19: 0 | AG19: 0 | AH19: 0
A20: 18 | B20: 0 | C20: 0 | D20: 0 | E20: 0 | F20: 0 | G20: 0 | H20: 0 | I20: 0 | J20: 0 | K20: 0 | L20: 0 | M20: 0 | N20: 0 | O20: 0 | P20: 0 | Q20: 0 | R20: -88 | S20: 260 | T20: -80 | U20: 0 | V20: -92 | W20: 0 | X20: 0 | Y20: 0 | Z20: 0 | AA20: 0 | AB20: 0 | AC20: 0 | AD20: 0 | AE20: 0 | AF20: 0 | AG20: 0 | AH20: 0
A21: 19 | B21: 0 | C21: 0 | D21: 0 | E21: 0 | F21: 0 | G21: 0 | H21: 0 | I21: 0 | J21: 0 | K21: 0 | L21: 0 | M21: 0 | N21: 0 | O21: 0 | P21: -88 | Q21: 0 | R21: 0 | S21: -80 | T21: 240 | U21: -72 | V21: 0 | W21: 0 | X21: 0 | Y21: 0 | Z21: 0 | AA21: 0 | AB21: 0 | AC21: 0 | AD21: 0 | AE21: 0 | AF21: 0 | AG21: 0 | AH21: 0
A22: 20 | B22: 0 | C22: 0 | D22: 0 | E22: 0 | F22: 0 | G22: 0 | H22: 0 | I22: 0 | J22: 0 | K22: 0 | L22: 0 | M22: 0 | N22: 0 | O22: -80 | P22: 0 | Q22: 0 | R22: 0 | S22: 0 | T22: -72 | U22: 232 | V22: -80 | W22: 0 | X22: 0 | Y22: 0 | Z22: 0 | AA22: 0 | AB22: 0 | AC22: 0 | AD22: 0 | AE22: 0 | AF22: 0 | AG22: 0 | AH22: 0
A23: 21 | B23: 0 | C23: 0 | D23: 0 | E23: 0 | F23: 0 | G23: 0 | H23: 0 | I23: 0 | J23: 0 | K23: 0 | L23: 0 | M23: 0 | N23: 0 | O23: 0 | P23: 0 | Q23: 0 | R23: -80 | S23: -92 | T23: 0 | U23: -80 | V23: 252 | W23: 0 | X23: 0 | Y23: 0 | Z23: 0 | AA23: 0 | AB23: 0 | AC23: 0 | AD23: 0 | AE23: 0 | AF23: 0 | AG23: 0 | AH23: 0
A24: 22 | B24: 0 | C24: 0 | D24: 0 | E24: 0 | F24: 0 | G24: 0 | H24: 0 | I24: 0 | J24: 0 | K24: 0 | L24: 0 | M24: 0 | N24: 0 | O24: 0 | P24: 0 | Q24: 0 | R24: 0 | S24: 0 | T24: 0 | U24: 0 | V24: 0 | W24: 380 | X24: -160 | Y24: 0 | Z24: 0 | AA24: -140 | AB24: -80 | AC24: 0 | AD24: 0 | AE24: 0 | AF24: 0 | AG24: 0 | AH24: 0
A25: 23 | B25: 0 | C25: 0 | D25: 0 | E25: 0 | F25: 0 | G25: 0 | H25: 0 | I25: -60 | J25: 0 | K25: 0 | L25: 0 | M25: 0 | N25: 0 | O25: 0 | P25: 0 | Q25: 0 | R25: 0 | S25: 0 | T25: 0 | U25: 0 | V25: 0 | W25: -160 | X25: 268 | Y25: -48 | Z25: 0 | AA25: 0 | AB25: 0 | AC25: 0 | AD25: 0 | AE25: 0 | AF25: 0 | AG25: 0 | AH25: 0
A26: 24 | B26: 0 | C26: 0 | D26: 0 | E26: 0 | F26: 0 | G26: 0 | H26: 0 | I26: -40 | J26: 0 | K26: 0 | L26: 0 | M26: 0 | N26: 0 | O26: 0 | P26: 0 | Q26: 0 | R26: 0 | S26: 0 | T26: 0 | U26: 0 | V26: 0 | W26: 0 | X26: -48 | Y26: 118 | Z26: -30 | AA26: 0 | AB26: 0 | AC26: 0 | AD26: 0 | AE26: 0 | AF26: 0 | AG26: 0 | AH26: 0
A27: 25 | B27: 0 | C27: 0 | D27: 0 | E27: 0 | F27: -40 | G27: 0 | H27: 0 | I27: 0 | J27: 0 | K27: 0 | L27: 0 | M27: 0 | N27: 0 | O27: 0 | P27: 0 | Q27: 0 | R27: 0 | S27: 0 | T27: 0 | U27: 0 | V27: 0 | W27: 0 | X27: 0 | Y27: -30 | Z27: 182 | AA27: -24 | AB27: -88 | AC27: 0 | AD27: 0 | AE27: 0 | AF27: 0 | AG27: 0 | AH27: 0
A28: 26 | B28: 0 | C28: 0 | D28: 0 | E28: 0 | F28: -20 | G28: 0 | H28: 0 | I28: 0 | J28: 0 | K28: 0 | L28: 0 | M28: 0 | N28: 0 | O28: 0 | P28: 0 | Q28: 0 | R28: 0 | S28: 0 | T28: 0 | U28: 0 | V28: 0 | W28: -140 | X28: 0 | Y28: 0 | Z28: -24 | AA28: 184 | AB28: 0 | AC28: 0 | AD28: 0 | AE28: 0 | AF28: 0 | AG28: 0 | AH28: 0
A29: 27 | B29: 0 | C29: 0 | D29: 0 | E29: 0 | F29: 0 | G29: 0 | H29: 0 | I29: 0 | J29: 0 | K29: 0 | L29: 0 | M29: 0 | N29: 0 | O29: 0 | P29: 0 | Q29: 0 | R29: 0 | S29: 0 | T29: 0 | U29: 0 | V29: 0 | W29: -80 | X29: 0 | Y29: 0 | Z29: -88 | AA29: 0 | AB29: 168 | AC29: 0 | AD29: 0 | AE29: 0 | AF29: 0 | AG29: 0 | AH29: 0
A30: 28 | B30: 0 | C30: 0 | D30: 0 | E30: -48 | F30: 0 | G30: 0 | H30: 0 | I30: 0 | J30: 0 | K30: 0 | L30: 0 | M30: 0 | N30: 0 | O30: 0 | P30: 0 | Q30: 0 | R30: 0 | S30: 0 | T30: 0 | U30: 0 | V30: 0 | W30: 0 | X30: 0 | Y30: 0 | Z30: 0 | AA30: 0 | AB30: 0 | AC30: 188 | AD30: -60 | AE30: 0 | AF30: 0 | AG30: 0 | AH30: -80
A31: 29 | B31: 0 | C31: 0 | D31: 0 | E31: 0 | F31: 0 | G31: -32 | H31: 0 | I31: 0 | J31: 0 | K31: 0 | L31: 0 | M31: 0 | N31: 0 | O31: 0 | P31: 0 | Q31: 0 | R31: 0 | S31: 0 | T31: 0 | U31: 0 | V31: 0 | W31: 0 | X31: 0 | Y31: 0 | Z31: 0 | AA31: 0 | AB31: 0 | AC31: -60 | AD31: 122 | AE31: -30 | AF31: 0 | AG31: 0 | AH31: 0
A32: 30 | B32: 0 | C32: 0 | D32: 0 | E32: 0 | F32: 0 | G32: 0 | H32: 0 | I32: 0 | J32: 0 | K32: 0 | L32: 0 | M32: 0 | N32: -40 | O32: 0 | P32: 0 | Q32: 0 | R32: 0 | S32: 0 | T32: 0 | U32: 0 | V32: 0 | W32: 0 | X32: 0 | Y32: 0 | Z32: 0 | AA32: 0 | AB32: 0 | AC32: 0 | AD32: -30 | AE32: 102 | AF32: -32 | AG32: 0 | AH32: 0
A33: 31 | B33: 0 | C33: 0 | D33: 0 | E33: 0 | F33: 0 | G33: 0 | H33: 0 | I33: 0 | J33: 0 | K33: 0 | L33: 0 | M33: 0 | N33: 0 | O33: 0 | P33: 0 | Q33: 0 | R33: 0 | S33: 0 | T33: 0 | U33: 0 | V33: 0 | W33: 0 | X33: 0 | Y33: 0 | Z33: 0 | AA33: 0 | AB33: 0 | AC33: 0 | AD33: 0 | AE33: -32 | AF33: 72 | AG33: -40 | AH33: 0
A34: 32 | B34: 0 | C34: 0 | D34: 0 | E34: 0 | F34: 0 | G34: 0 | H34: 0 | I34: 0 | J34: 0 | K34: 0 | L34: 0 | M34: 0 | N34: 0 | O34: 0 | P34: 0 | Q34: 0 | R34: 0 | S34: 0 | T34: 0 | U34: 0 | V34: 0 | W34: 0 | X34: 0 | Y34: 0 | Z34: 0 | AA34: 0 | AB34: 0 | AC34: 0 | AD34: 0 | AE34: 0 | AF34: -40 | AG34: 120 | AH34: -80
A35: 33 | B35: 0 | C35: 0 | D35: 0 | E35: 0 | F35: 0 | G35: 0 | H35: 0 | I35: 0 | J35: 0 | K35: 0 | L35: 0 | M35: 0 | N35: 0 | O35: 0 | P35: 0 | Q35: 0 | R35: 0 | S35: 0 | T35: 0 | U35: 0 | V35: 0 | W35: 0 | X35: 0 | Y35: 0 | Z35: 0 | AA35: 0 | AB35: 0 | AC35: -80 | AD35: 0 | AE35: 0 | AF35: 0 | AG35: -80 | AH35: 160

Sheet b-inverse
A1: B-Matrix-inverse
B2: 1 | C2: 2 | D2: 3 | E2: 4 | F2: 5 | G2: 6 | H2: 7 | I2: 8 | J2: 9 | K2: 10 | L2: 11 | M2: 12 | N2: 13 | O2: 14 | P2: 15 | Q2: 16 | R2: 17 | S2: 18 | T2: 19 | U2: 20 | V2: 21 | W2: 22 | X2: 23 | Y2: 24 | Z2: 25 | AA2: 26 | AB2: 27 | AC2: 28 | AD2: 29 | AE2: 30 | AF2: 31 | AG2: 32
A3: 1 | B3: 0.03834855378 | C3: 0.03042827999 | D3: 0.02426806705 | E3: 0.02338254736 | F3: 0.02240459827 | G3: 0.02032670206 | H3: 0.02124772865 | I3: 0.02124812499 | J3: 0.02044806333 | K3: 0.0193051181 | L3: 0.01911996319 | M3: 0.02009038342 | N3: 0.01608084777 | O3: 0.01771979112 | P3: 0.01701339305 | Q3: 0.01654712041 | R3: 0.01735352339 | S3: 0.01733111758 | T3: 0.01725236117 | U3: 0.01745692619 | V3: 0.01737816978 | W3: 0.0217156697 | X3: 0.02158116305 | Y3: 0.02154910515 | Z3: 0.0218991194 | AA3: 0.02181448146 | AB3: 0.0218117624 | AC3: 0.01025124727 | AD3: 0.0134145369 | AE3: 0.01236814 | AF3: 0.00674625818 | AG3: 0.002248752727
A4: 2 | B4: 0.03042827999 | C4: 0.04513526359 | D4: 0.02879625083 | E4: 0.02250913498 | F4: 0.02542905258 | G4: 0.02134712112 | H4: 0.02355725086 | I4: 0.02363817993 | J4: 0.02249561178 | K4: 0.02086337157 | L4: 0.02025922454 | M4: 0.02158833427 | N4: 0.01706514924 | O4: 0.01899584071 | P4: 0.0181636968 | Q4: 0.01761442302 | R4: 0.0185643737 | S4: 0.01853797944 | T4: 0.01844520361 | U4: 0.01868618323 | V4: 0.01859340739 | W4: 0.02436220274 | X4: 0.02415391062 | Y4: 0.02410426692 | Z4: 0.02464628631 | AA4: 0.02451521906 | AB4: 0.02451100842 | AC4: 0.01014331533 | AD4: 0.01377508005 | AE4: 0.01296176568 | AF4: 0.007070054007 | AG4: 0.002356684669
A5: 3 | B5: 0.02426806705 | C5: 0.02879625083 | D5: 0.03231817155 | E5: 0.02182981425 | F5: 0.02778140593 | G5: 0.0221407804 | H5: 0.02535354592 | I5: 0.02549711155 | J5: 0.02408814946 | K5: 0.02207534648 | L5: 0.0211453167 | M5: 0.02275340715 | N5: 0.01783071705 | O5: 0.01998832373 | P5: 0.01905837749 | Q5: 0.01844454727 | R5: 0.01950614617 | S5: 0.01947664978 | T5: 0.01937296995 | U5: 0.01964227203 | V5: 0.0195385922 | W5: 0.02642061732 | X5: 0.0261549365 | Y5: 0.02609161495 | Z5: 0.02678297169 | AA5: 0.02661579274 | AB5: 0.02661042199 | AC5: 0.01005936826 | AD5: 0.0140555025 | AE5: 0.01342347455 | AF5: 0.007321895207 | AG5: 0.002440631736
A6: 4 | B6: 0.02338254736 | C6: 0.02250913498 | D6: 0.02182981425 | E6: 0.02385284633 | F6: 0.02077604595 | G6: 0.01977724564 | H6: 0.02000413976 | I6: 0.01996117233 | J6: 0.01934553724 | K6: 0.01846605854 | L6: 0.01850651478 | M6: 0.0192837945 | N6: 0.01555083928 | O6: 0.0170326875 | P6: 0.01639399872 | Q6: 0.015972419 | R6: 0.01670152707 | S6: 0.01668126889 | T6: 0.01661006139 | U6: 0.01679501856 | V6: 0.01672381106 | W6: 0.02029061344 | X6: 0.02019583744 | Y6: 0.02017324882 | Z6: 0.02041987568 | AA6: 0.02036023814 | AB6: 0.02035832224 | AC6: 0.01030936447 | AD6: 0.01322039829 | AE6: 0.0120484954 | AF6: 0.006571906581 | AG6: 0.002190635527
A7: 5 | B7: 0.02240459827 | C7: 0.02542905258 | D7: 0.02778140593 | E7: 0.02077604595 | F7: 0.03143039713 | G7: 0.02337191163 | H7: 0.0281399746 | I7: 0.02838070262 | J7: 0.02655850792 | K7: 0.02395537263 | L7: 0.02251983064 | M7: 0.02456067845 | N7: 0.01901827257 | O7: 0.02152787211 | P7: 0.02044621405 | Q7: 0.01973224331 | R7: 0.0209670319 | S7: 0.02093272345 | T7: 0.02081212925 | U7: 0.02112536539 | V7: 0.02100477119 | W7: 0.02961364813 | X7: 0.02925894545 | Y7: 0.0291744067 | Z7: 0.03009741682 | AA7: 0.02987422111 | AB7: 0.02986705078 | AC7: 0.009929148837 | AD7: 0.01449049627 | AE7: 0.0141396814 | AF7: 0.007712553489 | AG7: 0.002570851163
A8: 6 | B8: 0.02032670206 | C8: 0.02134712112 | D8: 0.0221407804 | E8: 0.01977724564 | F8: 0.02337191163 | G8: 0.02564448962 | H8: 0.02353519688 | I8: 0.02331440336 | J8: 0.0230096426 | K8: 0.02257427008 | L8: 0.02343776276 | M8: 0.02396343435 | N8: 0.01912913081 | O8: 0.02088034505 | P8: 0.0201255573 | Q8: 0.01962734406 | R8: 0.02048898725 | S8: 0.0204650466 | T8: 0.02038089522 | U8: 0.02059947335 | V8: 0.02051532196 | W8: 0.02333765309 | X8: 0.02333096444 | Y8: 0.02332937029 | Z8: 0.02334677554 | AA8: 0.02334256673 | AB8: 0.02334243152 | AC8: 0.009878333923 | AD8: 0.01513031644 | AE8: 0.01441916342 | AF8: 0.007864998231 | AG8: 0.002621666077
A9: 7 | B9: 0.02124772865 | C9: 0.02355725086 | D9: 0.02535354592 | E9: 0.02000413976 | F9: 0.0281399746 | G9: 0.02353519688 | H9: 0.03774577121 | I9: 0.03297438015 | J9: 0.030595197 | K9: 0.02719636393 | L9: 0.02395865334 | M9: 0.02807723711 | N9: 0.02056599491 | O9: 0.02393630761 | P9: 0.0224836751 | Q9: 0.02152483501 | R9: 0.02318311697 | S9: 0.02313704181 | T9: 0.02297508763 | U9: 0.02339575384 | V9: 0.02323379965 | W9: 0.03101990288 | X9: 0.03158218104 | Y9: 0.03171619268 | Z9: 0.03025302802 | AA9: 0.03060684004 | AB9: 0.03061820652 | AC9: 0.009785258601 | AD9: 0.01465716514 | AE9: 0.0149310777 | AF9: 0.008144224198 | AG9: 0.002714741399
A10: 8 | B10: 0.02124812499 | C10: 0.02363817993 | D10: 0.02549711155 | E10: 0.01996117233 | F10: 0.02838070262 | G10: 0.02331440336 | H10: 0.03297438015 | I10: 0.04167337097 | J10: 0.03631364915 | K10: 0.0286569037 | L10: 0.02368152358 | M10: 0.02712926868 | N10: 0.02086312742 | O10: 0.02482481689 | P10: 0.02311729612 | Q10: 0.02199021177 | R10: 0.02393946657 | S10: 0.02388530677 | T10: 0.02369493506 | U10: 0.02418941407 | V10: 0.02399904236 | W10: 0.03629934558 | X10: 0.03784538408 | Y10: 0.03821386213 | Z10: 0.03419074855 | AA10: 0.03516358912 | AB10: 0.03519484237 | AC10: 0.009762152127 | AD10: 0.01461913881 | AE10: 0.0150581633 | AF10: 0.008213543618 | AG10: 0.002737847873
A11: 9 | B11: 0.02044806333 | C11: 0.02249561178 | D11: 0.02408814946 | E11: 0.01934553724 | F11: 0.02655850792 | G11: 0.0230096426 | H11: 0.030595197 | I11: 0.03631364915 | J11: 0.04992852371 | K11: 0.03366405879 | L11: 0.0241531183 | M11: 0.0277697435 | N11: 0.02249673716 | O11: 0.02817324865 | P11: 0.02572662548 | Q11: 0.02411168132 | R11: 0.02690467338 | S11: 0.02682707044 | T11: 0.02655429611 | U11: 0.02726281095 | V11: 0.02699003662 | W11: 0.03236979264 | X11: 0.03350438981 | Y11: 0.0337748062 | Z11: 0.03082234849 | AA11: 0.03153629071 | AB11: 0.03155922666 | AC11: 0.009618825416 | AD11: 0.01466255651 | AE11: 0.01584646021 | AF11: 0.008643523753 | AG11: 0.002881174584
A12: 10 | B12: 0.0193051181 | C12: 0.02086337157 | D12: 0.02207534648 | E12: 0.01846605854 | F12: 0.02395537263 | G12: 0.02257427008 | H12: 0.02719636393 | I12: 0.0286569037 | J12: 0.03366405879 | K12: 0.0408171375 | L12: 0.02482682504 | M12: 0.02868470752 | N12: 0.02483046536 | O12: 0.03295672258 | P12: 0.02945423884 | Q12: 0.0271423521 | R12: 0.03114068312 | S12: 0.03102958998 | T12: 0.03063909762 | U12: 0.03165337793 | V12: 0.03126288556 | W12: 0.02675614557 | X12: 0.02730296942 | Y12: 0.02743329773 | Z12: 0.02601034841 | AA12: 0.02635443584 | AB12: 0.02636548991 | AC12: 0.009414072971 | AD12: 0.01472458181 | AE12: 0.01697259866 | AF12: 0.009257781088 | AG12: 0.003085927029
A13: 11 | B13: 0.01911996319 | C13: 0.02025922454 | D13: 0.0211453167 | E13: 0.01850651478 | F13: 0.02251983064 | G13: 0.02343776276 | H13: 0.02395865334 | I13: 0.02368152358 | J13: 0.0241531183 | K13: 0.02482682504 | L13: 0.03380793854 | M13: 0.02573003173 | N13: 0.02394900382 | O13: 0.02439521307 | P13: 0.02420289321 | Q13: 0.02407594852 | R13: 0.02429549514 | S13: 0.02428939506 | T13: 0.02426795329 | U13: 0.02432364699 | V13: 0.02430220522 | W13: 0.02321186864 | X13: 0.02334698237 | Y13: 0.02337918496 | Z13: 0.02302759095 | AA13: 0.0231126109 | AB13: 0.02311534223 | AC13: 0.009478884082 | AD13: 0.01489529164 | AE13: 0.01661613755 | AF13: 0.009063347754 | AG13: 0.003021115918
A14: 12 | B14: 0.02009038342 | C14: 0.02158833427 | D14: 0.02275340715 | E14: 0.0192837945 | F14: 0.02456067845 | G14: 0.02396343435 | H14: 0.02807723711 | I14: 0.02712926868 | J14: 0.0277697435 | K14: 0.02868470752 | L14: 0.02573003173 | M14: 0.03273135787 | N14: 0.02175715825 | O14: 0.02527853198 | P14: 0.02376079092 | Q14: 0.02275897459 | R14: 0.02449158253 | S14: 0.02444344223 | T14: 0.02427422908 | U14: 0.02471375 | V14: 0.02454453686 | W14: 0.02609082638 | X14: 0.02638957297 | Y14: 0.02646077531 | Z14: 0.02568337457 | AA14: 0.02587136006 | AB14: 0.02587739924 | AC14: 0.009669096132 | AD14: 0.01486946562 | AE14: 0.01556997127 | AF14: 0.008492711604 | AG14: 0.002830903868
A15: 13 | B15: 0.01608084777 | C15: 0.01706514924 | D15: 0.01783071705 | E15: 0.01555083928 | F15: 0.01901827257 | G15: 0.01912913081 | H15: 0.02056599491 | I15: 0.02086312742 | J15: 0.02249673716 | K15: 0.02483046536 | L15: 0.02394900382 | M15: 0.02175715825 | N15: 0.03440348883 | O15: 0.02953738221 | P15: 0.03163471421 | Q15: 0.03301910152 | R15: 0.03062484984 | S15: 0.03069137382 | T15: 0.03092520564 | U15: 0.03031784163 | V15: 0.03055167345 | W15: 0.02011728042 | X15: 0.02033185108 | Y15: 0.02038299119 | Z15: 0.01982463372 | AA15: 0.01995965174 | AB15: 0.01996398929 | AC15: 0.008603900876 | AD15: 0.01451821798 | AE15: 0.02142854518 | AF15: 0.01168829737 | AG15: 0.003896099124
A16: 14 | B16: 0.01771979112 | C16: 0.01899584071 | D16: 0.01998832373 | E16: 0.0170326875 | F16: 0.02152787211 | G16: 0.02088034505 | H16: 0.02393630761 | I16: 0.02482481689 | J16: 0.02817324865 | K16: 0.03295672258 | L16: 0.02439521307 | M16: 0.02527853198 | N16: 0.02953738221 | O16: 0.04398334494 | P16: 0.03775701611 | Q16: 0.03364719916 | R16: 0.04075499052 | S16: 0.04055750141 | T16: 0.0398633272 | U16: 0.04166640275 | V16: 0.04097222854 | W16: 0.02349191183 | X16: 0.0238753716 | Y16: 0.02396676422 | Z16: 0.02296892218 | AA16: 0.02321021321 | AB16: 0.02321796487 | AC16: 0.009015723098 | AD16: 0.01462311571 | AE16: 0.01916352296 | AF16: 0.01045283071 | AG16: 0.003484276902
A17: 15 | B17: 0.01701339305 | C17: 0.0181636968 | D17: 0.01905837749 | E17: 0.01639399872 | F17: 0.02044621405 | G17: 0.0201255573 | H17: 0.0224836751 | I17: 0.02311729612 | J17: 0.02572662548 | K17: 0.02945423884 | L17: 0.02420289321 | M17: 0.02376079092 | N17: 0.03163471421 | O17: 0.03775701611 | P17: 0.04145660993 | Q17: 0.03654566207 | R17: 0.03967525725 | S17: 0.0397926024 | T17: 0.04020507059 | U17: 0.03913370939 | V17: 0.03954617758 | W17: 0.02203741792 | X17: 0.02234808509 | Y17: 0.02242212855 | Z17: 0.02161370798 | AA17: 0.02180919446 | AB17: 0.02181547461 | AC17: 0.008838224331 | AD17: 0.01457790393 | AE17: 0.02013976618 | AF17: 0.01098532701 | AG17: 0.003661775669
A18: 16 | B18: 0.01654712041 | C18: 0.01761442302 | D18: 0.01844454727 | E18: 0.015972419 | F18: 0.01973224331 | G18: 0.01962734406 | H18: 0.02152483501 | I18: 0.02199021177 | J18: 0.02411168132 | K18: 0.0271423521 | L18: 0.02407594852 | M18: 0.02275897459 | N18: 0.03301910152 | O18: 0.03364719916 | P18: 0.03654566207 | Q18: 0.04728238179 | R18: 0.03515005354 | S18: 0.03524198811 | T18: 0.03556513812 | U18: 0.03472577551 | V18: 0.03504892552 | W18: 0.02107734917 | X18: 0.02133996808 | Y18: 0.02140255987 | Z18: 0.02071917085 | AA18: 0.0208844231 | AB18: 0.02088973195 | AC18: 0.008721062604 | AD18: 0.01454806095 | AE18: 0.02078415568 | AF18: 0.01133681219 | AG18: 0.003778937396
A19: 17 | B19: 0.01735352339 | C19: 0.0185643737 | D19: 0.01950614617 | E19: 0.01670152707 | F19: 0.0209670319 | G19: 0.02048898725 | H19: 0.02318311697 | I19: 0.02393946657 | J19: 0.02690467338 | K19: 0.03114068312 | L19: 0.02429549514 | M19: 0.02449158253 | N19: 0.03062484984 | O19: 0.04075499052 | P19: 0.03967525725 | Q19: 0.03515005354 | R19: 0.05835549269 | S19: 0.05242018359 | T19: 0.04593257211 | U19: 0.04637194418 | V19: 0.05238433269 | W19: 0.02273775605 | X19: 0.02308347283 | Y19: 0.0231658699 | Z19: 0.02226624298 | AA19: 0.02248378433 | AB19: 0.02249077301 | AC19: 0.008923689904 | AD19: 0.01459967338 | AE19: 0.01966970553 | AF19: 0.01072893029 | AG19: 0.003576310096
A20: 18 | B20: 0.01733111758 | C20: 0.01853797944 | D20: 0.01947664978 | E20: 0.01668126889 | F20: 0.02093272345 | G20: 0.0204650466 | H20: 0.02313704181 | I20: 0.02388530677 | J20: 0.02682707044 | K20: 0.03102958998 | L20: 0.02428939506 | M20: 0.02444344223 | N20: 0.03069137382 | O20: 0.04055750141 | P20: 0.0397926024 | Q20: 0.03524198811 | R20: 0.05242018359 | S20: 0.05383406272 | T20: 0.04630384787 | U20: 0.04589513139 | V20: 0.05086491654 | W20: 0.02269162185 | X20: 0.02303502976 | Y20: 0.02311687655 | Z20: 0.02222325777 | AA20: 0.02243934627 | AB20: 0.02244628828 | AC20: 0.008918059929 | AD20: 0.01459823933 | AE20: 0.01970067039 | AF20: 0.01074582021 | AG20: 0.003581940071
A21: 19 | B21: 0.01725236117 | C21: 0.01844520361 | D21: 0.01937296995 | E21: 0.01661006139 | F21: 0.02081212925 | G21: 0.02038089522 | H21: 0.02297508763 | I21: 0.02369493506 | J21: 0.02655429611 | K21: 0.03063909762 | L21: 0.02426795329 | M21: 0.02427422908 | N21: 0.03092520564 | O21: 0.0398633272 | P21: 0.04020507059 | Q21: 0.03556513812 | R21: 0.04593257211 | S21: 0.04630384787 | T21: 0.04760888218 | U21: 0.04421913446 | V21: 0.04552416877 | W21: 0.02252946014 | X21: 0.02286475239 | Y21: 0.02294466491 | Z21: 0.02207216476 | AA21: 0.02228314651 | AB21: 0.02228992446 | AC21: 0.008898270569 | AD21: 0.01459319867 | AE21: 0.01980951187 | AF21: 0.01080518829 | AG21: 0.003601729431
A22: 20 | B22: 0.01745692619 | C22: 0.01868618323 | D22: 0.01964227203 | E22: 0.01679501856 | F22: 0.02112536539 | G22: 0.02059947335 | H22: 0.02339575384 | I22: 0.02418941407 | J22: 0.02726281095 | K22: 0.03165337793 | L22: 0.02432364699 | M22: 0.02471375 | N22: 0.03031784163 | O22: 0.04166640275 | P22: 0.03913370939 | Q22: 0.03472577551 | R22: 0.04637194418 | S22: 0.04589513139 | T22: 0.04421913446 | U22: 0.04857243517 | V22: 0.04689643824 | W22: 0.02295066539 | X22: 0.02330703757 | Y22: 0.02339197422 | Z22: 0.02246461971 | AA22: 0.02268886595 | AB22: 0.02269607003 | AC22: 0.008949672236 | AD22: 0.01460629149 | AE22: 0.0195268027 | AF22: 0.01065098329 | AG22: 0.003550327764
A23: 21 | B23: 0.01737816978 | C23: 0.01859340739 | D23: 0.0195385922 | E23: 0.01672381106 | F23: 0.02100477119 | G23: 0.02051532196 | H23: 0.02323379965 | I23: 0.02399904236 | J23: 0.02699003662 | K23: 0.03126288556 | L23: 0.02430220522 | M23: 0.02454453686 | N23: 0.03055167345 | O23: 0.04097222854 | P23: 0.03954617758 | Q23: 0.03504892552 | R23: 0.05238433269 | S23: 0.05086491654 | T23: 0.04552416877 | U23: 0.04689643824 | V23: 0.05405569046 | W23: 0.02278850367 | X23: 0.0231367602 | Y23: 0.02321976258 | Z23: 0.02231352671 | AA23: 0.02253266619 | AB23: 0.02253970621 | AC23: 0.008929882876 | AD23: 0.01460125083 | AE23: 0.01963564418 | AF23: 0.01071035137 | AG23: 0.003570117124
A24: 22 | B24: 0.0217156697 | C24: 0.02436220274 | D24: 0.02642061732 | E24: 0.02029061344 | F24: 0.02961364813 | G24: 0.02333765309 | H24: 0.03101990288 | I24: 0.03629934558 | J24: 0.03236979264 | K24: 0.02675614557 | L24: 0.02321186864 | M24: 0.02609082638 | N24: 0.02011728042 | O24: 0.02349191183 | P24: 0.02203741792 | Q24: 0.02107734917 | R24: 0.02273775605 | S24: 0.02269162185 | T24: 0.02252946014 | U24: 0.02295066539 | V24: 0.02278850367 | W24: 0.04410038377 | X24: 0.0414195825 | Y24: 0.03888387439 | Z24: 0.03827277984 | AA24: 0.04176561634 | AB24: 0.04104782933 | AC24: 0.009829666379 | AD24: 0.01456713057 | AE24: 0.01468683491 | AF24: 0.008011000863 | AG24: 0.002670333621
A25: 23 | B25: 0.02158116305 | C25: 0.02415391062 | D25: 0.0261549365 | E25: 0.02019583744 | F25: 0.02925894545 | G25: 0.02333096444 | H25: 0.03158218104 | I25: 0.03784538408 | J25: 0.03350438981 | K25: 0.02730296942 | L25: 0.02334698237 | M25: 0.02638957297 | N25: 0.02033185108 | O25: 0.0238753716 | P25: 0.02234808509 | Q25: 0.02133996808 | R25: 0.02308347283 | S25: 0.02303502976 | T25: 0.02286475239 | U25: 0.02330703757 | V25: 0.0231367602 | W25: 0.0414195825 | X25: 0.04414244281 | Y25: 0.04025663391 | Z25: 0.03725433947 | AA25: 0.03955448155 | AB25: 0.03923778853 | AC25: 0.009810243391 | AD25: 0.01458209267 | AE25: 0.01479366135 | AF25: 0.008069269828 | AG25: 0.002689756609
A26: 24 | B26: 0.02154910515 | C26: 0.02410426692 | D26: 0.02609161495 | E26: 0.02017324882 | F26: 0.0291744067 | G26: 0.02332937029 | H26: 0.03171619268 | I26: 0.03821386213 | J26: 0.0337748062 | K26: 0.02743329773 | L26: 0.02337918496 | M26: 0.02646077531 | N26: 0.02038299119 | O26: 0.02396676422 | P26: 0.02242212855 | Q26: 0.02140255987 | R26: 0.0231658699 | S26: 0.02311687655 | T26: 0.02294466491 | U26: 0.02339197422 | V26: 0.02321976258 | W26: 0.03888387439 | X26: 0.04025663391 | Y26: 0.04738596373 | Z26: 0.03768902688 | AA26: 0.03767264779 | AB26: 0.03825800189 | AC26: 0.009805614176 | AD26: 0.01458565869 | AE26: 0.01481912203 | AF26: 0.008083157473 | AG26: 0.002694385824
A27: 25 | B27: 0.0218991194 | C27: 0.02464628631 | D27: 0.02678297169 | E27: 0.02041987568 | F27: 0.03009741682 | G27: 0.02334677554 | H27: 0.03025302802 | I27: 0.03419074855 | J27: 0.03082234849 | K27: 0.02601034841 | L27: 0.02302759095 | M27: 0.02568337457 | N27: 0.01982463372 | O27: 0.02296892218 | P27: 0.02161370798 | Q27: 0.02071917085 | R27: 0.02226624298 | S27: 0.02222325777 | T27: 0.02207216476 | U27: 0.02246461971 | V27: 0.02231352671 | W27: 0.03827277984 | X27: 0.03725433947 | Y27: 0.03768902688 | Z27: 0.04304889786 | AA27: 0.03800712534 | AB27: 0.04077455594 | AC27: 0.009856156829 | AD27: 0.01454672418 | AE27: 0.01454113744 | AF27: 0.007931529513 | AG27: 0.002643843171
A28: 26 | B28: 0.02181448146 | C28: 0.02451521906 | D28: 0.02661579274 | E28: 0.02036023814 | F28: 0.02987422111 | G28: 0.02334256673 | H28: 0.03060684004 | I28: 0.03516358912 | J28: 0.03153629071 | K28: 0.02635443584 | L28: 0.0231126109 | M28: 0.02587136006 | N28: 0.01995965174 | O28: 0.02321021321 | P28: 0.02180919446 | Q28: 0.0208844231 | R28: 0.02248378433 | S28: 0.02243934627 | T28: 0.02228314651 | U28: 0.02268886595 | V28: 0.02253266619 | W28: 0.04176561634 | X28: 0.03955448155 | Y28: 0.03767264779 | Z28: 0.03800712534 | AA28: 0.04541761803 | AB28: 0.03979688296 | AC28: 0.009843934966 | AD28: 0.01455613905 | AE28: 0.01460835769 | AF28: 0.007968195102 | AG28: 0.002656065034
A29: 27 | B29: 0.0218117624 | C29: 0.02451100842 | D29: 0.02661042199 | E29: 0.02035832224 | F29: 0.02986705078 | G29: 0.02334243152 | H29: 0.03061820652 | I29: 0.03519484237 | J29: 0.03155922666 | K29: 0.02636548991 | L29: 0.02311534223 | M29: 0.02587739924 | N29: 0.01996398929 | O29: 0.02321796487 | P29: 0.02181547461 | Q29: 0.02088973195 | R29: 0.02249077301 | S29: 0.02244628828 | T29: 0.02228992446 | U29: 0.02269607003 | V29: 0.02253970621 | W29: 0.04104782933 | X29: 0.03923778853 | Y29: 0.03825800189 | Z29: 0.04077455594 | AA29: 0.03979688296 | AB29: 0.04685706708 | AC29: 0.009843542329 | AD29: 0.01455644151 | AE29: 0.01461051719 | AF29: 0.007969373013 | AG29: 0.002656457671
A30: 28 | B30: 0.01025124727 | C30: 0.01014331533 | D30: 0.01005936826 | E30: 0.01030936447 | F30: 0.009929148837 | G30: 0.009878333923 | H30: 0.009785258601 | I30: 0.009762152127 | J30: 0.009618825416 | K30: 0.009414072971 | L30: 0.009478884082 | M30: 0.009669096132 | N30: 0.008603900876 | O30: 0.009015723098 | P30: 0.008838224331 | Q30: 0.008721062604 | R30: 0.008923689904 | S30: 0.008918059929 | T30: 0.008898270569 | U30: 0.008949672236 | V30: 0.008929882876 | W30: 0.009829666379 | X30: 0.009810243391 | Y30: 0.009805614176 | Z30: 0.009856156829 | AA30: 0.009843934966 | AB30: 0.009843542329 | AC30: 0.01111944313 | AD30: 0.009926763577 | AE30: 0.007593062759 | AF30: 0.004141670596 | AG30: 0.001380556865
A31: 29 | B31: 0.0134145369 | C31: 0.01377508005 | D31: 0.0140555025 | E31: 0.01322039829 | F31: 0.01449049627 | G31: 0.01513031644 | H31: 0.01465716514 | I31: 0.01461913881 | J31: 0.01466255651 | K31: 0.01472458181 | L31: 0.01489529164 | M31: 0.01486946562 | N31: 0.01451821798 | O31: 0.01462311571 | P31: 0.01457790393 | Q31: 0.01454806095 | R31: 0.01459967338 | S31: 0.01459823933 | T31: 0.01459319867 | U31: 0.01460629149 | V31: 0.01460125083 | W31: 0.01456713057 | X31: 0.01458209267 | Y31: 0.01458565869 | Z31: 0.01454672418 | AA31: 0.01455613905 | AB31: 0.01455644151 | AC31: 0.009926763577 | AD31: 0.02052754058 | AE31: 0.01415280033 | AF31: 0.007719709269 | AG31: 0.002573236423
A32: 30 | B32: 0.01236814 | C32: 0.01296176568 | D32: 0.01342347455 | E32: 0.0120484954 | F32: 0.0141396814 | G32: 0.01441916342 | H32: 0.0149310777 | I32: 0.0150581633 | J32: 0.01584646021 | K32: 0.01697259866 | L32: 0.01661613755 | M32: 0.01556997127 | N32: 0.02142854518 | O32: 0.01916352296 | P32: 0.02013976618 | Q32: 0.02078415568 | R32: 0.01966970553 | S32: 0.01970067039 | T32: 0.01980951187 | U32: 0.0195268027 | V32: 0.01963564418 | W32: 0.01468683491 | X32: 0.01479366135 | Y32: 0.01481912203 | Z32: 0.01454113744 | AA32: 0.01460835769 | AB32: 0.01461051719 | AC32: 0.007593062759 | AD32: 0.01415280033 | AE32: 0.02698815483 | AF32: 0.01472081172 | AG32: 0.004906937241
A33: 31 | B33: 0.00674625818 | C33: 0.007070054007 | D33: 0.007321895207 | E33: 0.006571906581 | F33: 0.007712553489 | G33: 0.007864998231 | H33: 0.008144224198 | I33: 0.008213543618 | J33: 0.008643523753 | K33: 0.009257781088 | L33: 0.009063347754 | M33: 0.008492711604 | N33: 0.01168829737 | O33: 0.01045283071 | P33: 0.01098532701 | Q33: 0.01133681219 | R33: 0.01072893029 | S33: 0.01074582021 | T33: 0.01080518829 | U33: 0.01065098329 | V33: 0.01071035137 | W33: 0.008011000863 | X33: 0.008069269828 | Y33: 0.008083157473 | Z33: 0.007931529513 | AA33: 0.007968195102 | AB33: 0.007969373013 | AC33: 0.004141670596 | AD33: 0.007719709269 | AE33: 0.01472081172 | AF33: 0.02507498821 | AG33: 0.008358329404
A34: 32 | B34: 0.002248752727 | C34: 0.002356684669 | D34: 0.002440631736 | E34: 0.002190635527 | F34: 0.002570851163 | G34: 0.002621666077 | H34: 0.002714741399 | I34: 0.002737847873 | J34: 0.002881174584 | K34: 0.003085927029 | L34: 0.003021115918 | M34: 0.002830903868 | N34: 0.003896099124 | O34: 0.003484276902 | P34: 0.003661775669 | Q34: 0.003778937396 | R34: 0.003576310096 | S34: 0.003581940071 | T34: 0.003601729431 | U34: 0.003550327764 | V34: 0.003570117124 | W34: 0.002670333621 | X34: 0.002689756609 | Y34: 0.002694385824 | Z34: 0.002643843171 | AA34: 0.002656065034 | AB34: 0.002656457671 | AC34: 0.001380556865 | AD34: 0.002573236423 | AE34: 0.004906937241 | AF34: 0.008358329404 | AG34: 0.01111944313

Sheet PTDF
A1: PTDF matrix | W1: CB | X1: Power Flow [MW]
A2: CB | B2: zone A | C2: zone B | D2: zone C | E2: zone D | F2: zone E | G2: zone F | J2: Ref. flow | K2: PTDF flow | L2: 11 | M2: 22 | N2: 33 | O2: 44 | P2: 55 | Q2: 66 | R2: 77 | S2: 88 | T2: 00 | U2: AVG | X2: 11 | Y2: 22 | Z2: 33 | AA2: 44 | AB2: 55 | AC2: 66 | AD2: 77 | AE2: 88 | AF2: 00 | AG2: AVG
A3: G | B3: -0.2131511313 | C3: 0.01825630672 | D3: -0.04169329112 | E3: -0.003028557187 | F3: -0.02708040512 | G3: -0.03024894695 | J3: 12.51831625 | K3: =SUMPRODUCT($B3:$G3,zones!$B$25:$G$25) -> 2.632235411 | L3: =SUMPRODUCT($B3:$G3,zones!$B$26:$G$26) -> 2.943945312 | M3: =SUMPRODUCT($B3:$G3,zones!$B$27:$G$27) -> 4.52106045 | N3: =SUMPRODUCT($B3:$G3,zones!$B$28:$G$28) -> 8.473019414 | O3: =SUMPRODUCT($B3:$G3,zones!$B$29:$G$29) -> 6.935831835 | P3: =SUMPRODUCT($B3:$G3,zones!$B$30:$G$30) -> -1.815710633 | Q3: =SUMPRODUCT($B3:$G3,zones!$B$31:$G$31) -> -2.180265893 | R3: =SUMPRODUCT($B3:$G3,zones!$B$32:$G$32) -> -2.686081463 | S3: =SUMPRODUCT($B3:$G3,zones!$B$33:$G$33) -> -3.255599798 | T3: =SUMPRODUCT($B3:$G3,zones!$B$34:$G$34) -> 1.366879104 | U3: =SUMPRODUCT($B3:$G3,zones!$B$35:$G$35) -> 1.101624673 | W3: G | X3: =L3 -> 2.943945312 | Y3: =M3 -> 4.52106045 | Z3: 8.473019414 | AA3: 6.935831835 | AB3: -1.815710633 | AC3: -2.180265893 | AD3: -2.686081463 | AE3: -3.255599798 | AF3: 1.366879104 | AG3: =U3 -> 1.101624673
A4: H | B4: -0.3790217433 | C4: 0.03127576455 | D4: -0.0714267993 | E4: -0.005188368215 | F4: -0.04639275552 | G4: -0.05182093822 | J4: -73.0505595 | K4: =SUMPRODUCT($B4:$G4,zones!$B$25:$G$25) -> 4.509410157 | L4: =SUMPRODUCT($B4:$G4,zones!$B$26:$G$26) -> 5.043415507 | M4: =SUMPRODUCT($B4:$G4,zones!$B$27:$G$27) -> 7.745247946 | N4: =SUMPRODUCT($B4:$G4,zones!$B$28:$G$28) -> 14.51554053 | O4: =SUMPRODUCT($B4:$G4,zones!$B$29:$G$29) -> 11.88210993 | P4: =SUMPRODUCT($B4:$G4,zones!$B$30:$G$30) -> -3.110581954 | Q4: =SUMPRODUCT($B4:$G4,zones!$B$31:$G$31) -> -3.735119253 | R4: =SUMPRODUCT($B4:$G4,zones!$B$32:$G$32) -> -4.60165644 | S4: =SUMPRODUCT($B4:$G4,zones!$B$33:$G$33) -> -5.577325924 | T4: =SUMPRODUCT($B4:$G4,zones!$B$34:$G$34) -> 2.341666892 | U4: =SUMPRODUCT($B4:$G4,zones!$B$35:$G$35) -> 1.88724666 | W4: H | X4: =L4 -> 5.043415507 | Y4: 7.745247946 | Z4: 14.51554053 | AA4: 11.88210993 | AB4: -3.110581954 | AC4: -3.735119253 | AD4: -4.60165644 | AE4: -5.577325924 | AF4: 2.341666892 | AG4: =U4 -> 1.88724666
A5: I | B5: -0.05465565551 | C5: 0.07478212166 | D5: -0.1410881337 | E5: -0.01045121158 | F5: -0.08108211175 | G5: -0.08844336886 | J5: 10.30554604 | K5: =SUMPRODUCT($B5:$G5,zones!$B$25:$G$25) -> 9.66862359 | L5: =SUMPRODUCT($B5:$G5,zones!$B$26:$G$26) -> 10.05721275 | M5: =SUMPRODUCT($B5:$G5,zones!$B$27:$G$27) -> 15.99769496 | N5: =SUMPRODUCT($B5:$G5,zones!$B$28:$G$28) -> 30.68421179 | O5: =SUMPRODUCT($B5:$G5,zones!$B$29:$G$29) -> 25.21945777 | P5: =SUMPRODUCT($B5:$G5,zones!$B$30:$G$30) -> -7.089750038 | Q5: =SUMPRODUCT($B5:$G5,zones!$B$31:$G$31) -> -8.123448244 | R5: =SUMPRODUCT($B5:$G5,zones!$B$32:$G$32) -> -9.962679919 | S5: =SUMPRODUCT($B5:$G5,zones!$B$33:$G$33) -> -11.47848564 | T5: =SUMPRODUCT($B5:$G5,zones!$B$34:$G$34) -> 4.745364342 | U5: =SUMPRODUCT($B5:$G5,zones!$B$35:$G$35) -> 3.560596776 | W5: I | X5: 10.05721275 | Y5: 15.99769496 | Z5: 30.68421179 | AA5: 25.21945777 | AB5: -7.089750038 | AC5: -8.123448244 | AD5: -9.962679919 | AE5: -11.47848564 | AF5: 4.745364342 | AG5: 3.560596776 | AM5: Zones
A6: L | B6: -0.1633162607 | C6: -0.01862270717 | D6: 0.04253006718 | E6: 0.003089339728 | F6: 0.02762390347 | G6: 0.0308560373 | J6: -37.29240421 | K6: =SUMPRODUCT($B6:$G6,zones!$B$25:$G$25) -> -2.685063853 | L6: =SUMPRODUCT($B6:$G6,zones!$B$26:$G$26) -> -3.003029709 | M6: =SUMPRODUCT($B6:$G6,zones!$B$27:$G$27) -> -4.611797234 | N6: =SUMPRODUCT($B6:$G6,zones!$B$28:$G$28) -> -8.643071229 | O6: =SUMPRODUCT($B6:$G6,zones!$B$29:$G$29) -> -7.075032601 | P6: =SUMPRODUCT($B6:$G6,zones!$B$30:$G$30) -> 1.852151584 | Q6: =SUMPRODUCT($B6:$G6,zones!$B$31:$G$31) -> 2.224023396 | R6: =SUMPRODUCT($B6:$G6,zones!$B$32:$G$32) -> 2.739990584 | S6: =SUMPRODUCT($B6:$G6,zones!$B$33:$G$33) -> 3.320939039 | T6: =SUMPRODUCT($B6:$G6,zones!$B$34:$G$34) -> -1.394312096 | U6: =SUMPRODUCT($B6:$G6,zones!$B$35:$G$35) -> -1.123734061 | W6: L | X6: -3.003029709 | Y6: -4.611797234 | Z6: -8.643071229 | AA6: -7.075032601 | AB6: 1.852151584 | AC6: 2.224023396 | AD6: 2.739990584 | AE6: 3.320939039 | AF6: -1.394312096 | AG6: -1.123734061 | AK6: Critical Branches | AL6: PTDF | AS6: Net Positions | AW6: Power flow on CBs | BC6: Zone
A7: M | B7: 0.5022826964 | C7: 0.5936749112 | D7: 0.450653505 | E7: 0.08191186539 | F7: 0.3620560801 | G7: 0.3730377685 | J7: 2.961010335 | K7: =SUMPRODUCT($B7:$G7,zones!$B$25:$G$25) -> 13.44298397 | L7: =SUMPRODUCT($B7:$G7,zones!$B$26:$G$26) -> 11.92670864 | M7: =SUMPRODUCT($B7:$G7,zones!$B$27:$G$27) -> 15.62859163 | N7: =SUMPRODUCT($B7:$G7,zones!$B$28:$G$28) -> 14.71943515 | O7: =SUMPRODUCT($B7:$G7,zones!$B$29:$G$29) -> 12.63315765 | P7: =SUMPRODUCT($B7:$G7,zones!$B$30:$G$30) -> 0.5345434739 | Q7: =SUMPRODUCT($B7:$G7,zones!$B$31:$G$31) -> -0.4729124437 | R7: =SUMPRODUCT($B7:$G7,zones!$B$32:$G$32) -> -9.311439324 | S7: =SUMPRODUCT($B7:$G7,zones!$B$33:$G$33) -> -11.6804814 | T7: =SUMPRODUCT($B7:$G7,zones!$B$34:$G$34) -> 6.384519778 | U7: =SUMPRODUCT($B7:$G7,zones!$B$35:$G$35) -> 6.744826366 | W7: M | X7: 11.92670864 | Y7: 15.62859163 | Z7: 14.71943515 | AA7: 12.63315765 | AB7: 0.5345434739 | AC7: -0.4729124437 | AD7: -9.311439324 | AE7: -11.6804814 | AF7: 6.384519778 | AG7: 6.744826366 | BB7: Line | BC7: A | BD7: B | BE7: C | BG7: NP1 | BH7: NP2 | BJ7: PF1 | BK7: PF2
A8: O | B8: 0.2806868395 | C8: 0.2422388981 | D8: 0.2718006782 | E8: -0.01463654405 | F8: 0.1768878445 | G8: 0.1881519541 | J8: 20.28121059 | K8: =SUMPRODUCT($B8:$G8,zones!$B$25:$G$25) -> 3.374499685 | L8: =SUMPRODUCT($B8:$G8,zones!$B$26:$G$26) -> 2.200010626 | M8: =SUMPRODUCT($B8:$G8,zones!$B$27:$G$27) -> 1.20574537 | N8: =SUMPRODUCT($B8:$G8,zones!$B$28:$G$28) -> -7.977468047 | O8: =SUMPRODUCT($B8:$G8,zones!$B$29:$G$29) -> -6.20735471 | P8: =SUMPRODUCT($B8:$G8,zones!$B$30:$G$30) -> 4.527643925 | Q8: =SUMPRODUCT($B8:$G8,zones!$B$31:$G$31) -> 4.427383962 | R8: =SUMPRODUCT($B8:$G8,zones!$B$32:$G$32) -> -0.4256856292 | S8: =SUMPRODUCT($B8:$G8,zones!$B$33:$G$33) -> -1.181852093 | T8: =SUMPRODUCT($B8:$G8,zones!$B$34:$G$34) -> 1.538057438 | U8: =SUMPRODUCT($B8:$G8,zones!$B$35:$G$35) -> 2.488894002 | W8: O | X8: 2.200010626 | Y8: 1.20574537 | Z8: -7.977468047 | AA8: -6.20735471 | AB8: 4.527643925 | AC8: 4.427383962 | AD8: -0.4256856292 | AE8: -1.181852093 | AF8: 1.538057438 | AG8: 2.488894002 | BB8: A-B | BC8: =1/3 -> 0.3333333333 | BD8: =-1/3 -> -0.3333333333 | BE8: 0 | BG8: 2000 | BH8: 1000 | BJ8: =MMULT(BC8:BE10,BG8:BG10) -> 1000 | BK8: =MMULT(BC8:BE10,BH8:BH10) -> 0
A9: P | B9: 0.006333549079 | C9: 0.05223697819 | D9: -0.2025214256 | E9: -0.03146698794 | F9: -0.1964696066 | G9: -0.1830763263 | J9: 69.1624721 | K9: =SUMPRODUCT($B9:$G9,zones!$B$25:$G$25) -> 16.65062511 | L9: =SUMPRODUCT($B9:$G9,zones!$B$26:$G$26) -> 13.84197783 | M9: =SUMPRODUCT($B9:$G9,zones!$B$27:$G$27) -> 21.4385333 | N9: =SUMPRODUCT($B9:$G9,zones!$B$28:$G$28) -> 32.95886684 | O9: =SUMPRODUCT($B9:$G9,zones!$B$29:$G$29) -> 27.73435237 | P9: =SUMPRODUCT($B9:$G9,zones!$B$30:$G$30) -> -6.438101828 | Q9: =SUMPRODUCT($B9:$G9,zones!$B$31:$G$31) -> -7.081659461 | R9: =SUMPRODUCT($B9:$G9,zones!$B$32:$G$32) -> -14.39231404 | S9: =SUMPRODUCT($B9:$G9,zones!$B$33:$G$33) -> -15.57457627 | T9: =SUMPRODUCT($B9:$G9,zones!$B$34:$G$34) -> 7.263484796 | U9: =SUMPRODUCT($B9:$G9,zones!$B$35:$G$35) -> 5.978557687 | W9: P | X9: 13.84197783 | Y9: 21.4385333 | Z9: 32.95886684 | AA9: 27.73435237 | AB9: -6.438101828 | AC9: -7.081659461 | AD9: -14.39231404 | AE9: -15.57457627 | AF9: 7.263484796 | AG9: 5.978557687 | AR9: x | AV9: = | BB9: A-C | BC9: =2/3 -> 0.6666666667 | BD9: =1/3 -> 0.3333333333 | BE9: 0 | BF9: x | BG9: -1000 | BH9: 1000 | BI9: = | BJ9: 1000 | BK9: 1000
A10: Q | B10: 0.08674518737 | C10: 0.08942046133 | D10: 0.1224235173 | E10: -0.04059339437 | F10: -0.2098896987 | G10: -0.178086158 | J10: 24.91078371 | K10: =SUMPRODUCT($B10:$G10,zones!$B$25:$G$25) -> 15.12877018 | L10: =SUMPRODUCT($B10:$G10,zones!$B$26:$G$26) -> 12.16207218 | M10: =SUMPRODUCT($B10:$G10,zones!$B$27:$G$27) -> 10.20266098 | N10: =SUMPRODUCT($B10:$G10,zones!$B$28:$G$28) -> -18.53703214 | O10: =SUMPRODUCT($B10:$G10,zones!$B$29:$G$29) -> -14.13474588 | P10: =SUMPRODUCT($B10:$G10,zones!$B$30:$G$30) -> 14.72220805 | Q10: =SUMPRODUCT($B10:$G10,zones!$B$31:$G$31) -> 13.5825918 | R10: =SUMPRODUCT($B10:$G10,zones!$B$32:$G$32) -> -4.469291919 | S10: =SUMPRODUCT($B10:$G10,zones!$B$33:$G$33) -> -8.524226361 | T10: =SUMPRODUCT($B10:$G10,zones!$B$34:$G$34) -> 7.414348859 | U10: =SUMPRODUCT($B10:$G10,zones!$B$35:$G$35) -> 10.78391299 | W10: Q | X10: 12.16207218 | Y10: 10.20266098 | Z10: -18.53703214 | AA10: -14.13474588 | AB10: 14.72220805 | AC10: 13.5825918 | AD10: -4.469291919 | AE10: -8.524226361 | AF10: 7.414348859 | AG10: 10.78391299 | BB10: B-C | BC10: =1/3 -> 0.3333333333 | BD10: =2/3 -> 0.6666666667 | BE10: 0 | BG10: -1000 | BH10: -2000 | BJ10: 0 | BK10: 1000
A11: R | B11: -0.1424745549 | C11: -0.01246498041 | D11: -0.2657245335 | E11: -0.01714019641 | F11: -0.1879190456 | G11: -0.2076001422 | J11: 17.82200419 | K11: =SUMPRODUCT($B11:$G11,zones!$B$25:$G$25) -> 9.721622076 | L11: =SUMPRODUCT($B11:$G11,zones!$B$26:$G$26) -> 11.98672934 | M11: =SUMPRODUCT($B11:$G11,zones!$B$27:$G$27) -> 18.46312634 | N11: =SUMPRODUCT($B11:$G11,zones!$B$28:$G$28) -> 36.62639432 | O11: =SUMPRODUCT($B11:$G11,zones!$B$29:$G$29) -> 29.80244516 | P11: =SUMPRODUCT($B11:$G11,zones!$B$30:$G$30) -> -8.108042944 | Q11: =SUMPRODUCT($B11:$G11,zones!$B$31:$G$31) -> -9.833978668 | R11: =SUMPRODUCT($B11:$G11,zones!$B$32:$G$32) -> -10.62014319 | S11: =SUMPRODUCT($B11:$G11,zones!$B$33:$G$33) -> -13.25167887 | T11: =SUMPRODUCT($B11:$G11,zones!$B$34:$G$34) -> 5.360027649 | U11: =SUMPRODUCT($B11:$G11,zones!$B$35:$G$35) -> 4.238253836 | W11: R | X11: 11.98672934 | Y11: 18.46312634 | Z11: 36.62639432 | AA11: 29.80244516 | AB11: -8.108042944 | AC11: -9.833978668 | AD11: -10.62014319 | AE11: -13.25167887 | AF11: 5.360027649 | AG11: 4.238253836
A12: U | B12: 0.1302852768 | C12: 0.07466572939 | D12: 0.1551222995 | E12: -0.02668192696 | F12: -0.3290542259 | G12: -0.3831035646 | J12: -8.153004626 | K12: =SUMPRODUCT($B12:$G12,zones!$B$25:$G$25) -> 8.053746167 | L12: =SUMPRODUCT($B12:$G12,zones!$B$26:$G$26) -> 20.71120855 | M12: =SUMPRODUCT($B12:$G12,zones!$B$27:$G$27) -> 11.96300202 | N12: =SUMPRODUCT($B12:$G12,zones!$B$28:$G$28) -> -28.20493496 | O12: =SUMPRODUCT($B12:$G12,zones!$B$29:$G$29) -> -24.29105706 | P12: =SUMPRODUCT($B12:$G12,zones!$B$30:$G$30) -> 27.21560455 | Q12: =SUMPRODUCT($B12:$G12,zones!$B$31:$G$31) -> 20.46293668 | R12: =SUMPRODUCT($B12:$G12,zones!$B$32:$G$32) -> 4.206416872 | S12: =SUMPRODUCT($B12:$G12,zones!$B$33:$G$33) -> -10.61344014 | T12: =SUMPRODUCT($B12:$G12,zones!$B$34:$G$34) -> 9.663073924 | U12: =SUMPRODUCT($B12:$G12,zones!$B$35:$G$35) -> 17.98236664 | W12: U | X12: 20.71120855 | Y12: 11.96300202 | Z12: -28.20493496 | AA12: -24.29105706 | AB12: 27.21560455 | AC12: 20.46293668 | AD12: 4.206416872 | AE12: -10.61344014 | AF12: 9.663073924 | AG12: 17.98236664
A13: X | B13: -0.2445108647 | C13: -0.03090936411 | D13: 0.07059002324 | E13: 0.005127585674 | F13: 0.04584925718 | G13: 0.05121384787 | J13: 97.82464747 | K13: =SUMPRODUCT($B13:$G13,zones!$B$25:$G$25) -> -4.456581716 | L13: =SUMPRODUCT($B13:$G13,zones!$B$26:$G$26) -> -4.98433111 | M13: =SUMPRODUCT($B13:$G13,zones!$B$27:$G$27) -> -7.654511162 | N13: =SUMPRODUCT($B13:$G13,zones!$B$28:$G$28) -> -14.34548872 | O13: =SUMPRODUCT($B13:$G13,zones!$B$29:$G$29) -> -11.74290917 | P13: =SUMPRODUCT($B13:$G13,zones!$B$30:$G$30) -> 3.074141003 | Q13: =SUMPRODUCT($B13:$G13,zones!$B$31:$G$31) -> 3.69136175 | R13: =SUMPRODUCT($B13:$G13,zones!$B$32:$G$32) -> 4.547747319 | S13: =SUMPRODUCT($B13:$G13,zones!$B$33:$G$33) -> 5.511986683 | T13: =SUMPRODUCT($B13:$G13,zones!$B$34:$G$34) -> -2.3142339 | U13: =SUMPRODUCT($B13:$G13,zones!$B$35:$G$35) -> -1.865137272 | W13: X | X13: -4.98433111 | Y13: -7.654511162 | Z13: -14.34548872 | AA13: -11.74290917 | AB13: 3.074141003 | AC13: 3.69136175 | AD13: 4.547747319 | AE13: 5.511986683 | AF13: -2.3142339 | AG13: -1.865137272
A14: AJ | B14: 0.2170304641 | C14: 0.1640861907 | D14: 0.2775458168 | E14: -0.06727532134 | F14: 0.4610560754 | G14: 0.4388102774 | J14: -23.24222092 | K14: =SUMPRODUCT($B14:$G14,zones!$B$25:$G$25) -> -16.81748366 | L14: =SUMPRODUCT($B14:$G14,zones!$B$26:$G$26) -> -14.12671927 | M14: =SUMPRODUCT($B14:$G14,zones!$B$27:$G$27) -> -16.834337 | N14: =SUMPRODUCT($B14:$G14,zones!$B$28:$G$28) -> -6.741967106 | O14: =SUMPRODUCT($B14:$G14,zones!$B$29:$G$29) -> -6.425802935 | P14: =SUMPRODUCT($B14:$G14,zones!$B$30:$G$30) -> -5.062187399 | Q14: =SUMPRODUCT($B14:$G14,zones!$B$31:$G$31) -> -3.954471519 | R14: =SUMPRODUCT($B14:$G14,zones!$B$32:$G$32) -> 9.737124953 | S14: =SUMPRODUCT($B14:$G14,zones!$B$33:$G$33) -> 12.86233349 | T14: =SUMPRODUCT($B14:$G14,zones!$B$34:$G$34) -> -7.922577216 | U14: =SUMPRODUCT($B14:$G14,zones!$B$35:$G$35) -> -9.233720368 | W14: AJ | X14: -14.12671927 | Y14: -16.834337 | Z14: -6.741967106 | AA14: -6.425802935 | AB14: -5.062187399 | AC14: -3.954471519 | AD14: 9.737124953 | AE14: 12.86233349 | AF14: -7.922577216 | AG14: -9.233720368
A15: AO | B15: 0.04320551026 | C15: 0.02476082499 | D15: 0.05144202221 | E15: -0.008848323446 | F15: 0.05668944013 | G15: -0.4398592874 | J15: -54.64834969 | K15: =SUMPRODUCT($B15:$G15,zones!$B$25:$G$25) -> -61.39661586 | L15: =SUMPRODUCT($B15:$G15,zones!$B$26:$G$26) -> 22.28847521 | M15: =SUMPRODUCT($B15:$G15,zones!$B$27:$G$27) -> -3.217374154 | N15: =SUMPRODUCT($B15:$G15,zones!$B$28:$G$28) -> 11.63780291 | O15: =SUMPRODUCT($B15:$G15,zones!$B$29:$G$29) -> -3.706749381 | P15: =SUMPRODUCT($B15:$G15,zones!$B$30:$G$30) -> 25.40272784 | Q15: =SUMPRODUCT($B15:$G15,zones!$B$31:$G$31) -> -0.4721070113 | R15: =SUMPRODUCT($B15:$G15,zones!$B$32:$G$32) -> 46.12928192 | S15: =SUMPRODUCT($B15:$G15,zones!$B$33:$G$33) -> 0.8290541458 | T15: =SUMPRODUCT($B15:$G15,zones!$B$34:$G$34) -> -1.898037622 | U15: =SUMPRODUCT($B15:$G15,zones!$B$35:$G$35) -> 14.49989755 | W15: AO | X15: 22.28847521 | Y15: -3.217374154 | Z15: 11.63780291 | AA15: -3.706749381 | AB15: 25.40272784 | AC15: -0.4721070113 | AD15: 46.12928192 | AE15: 0.8290541458 | AF15: -1.898037622 | AG15: 14.49989755
A16: AP | B16: -0.04320551026 | C16: -0.02476082499 | D16: -0.05144202221 | E16: 0.008848323446 | F16: -0.05668944013 | G16: -0.5601407126 | J16: -65.35165031 | K16: =SUMPRODUCT($B16:$G16,zones!$B$25:$G$25) -> -58.60338414 | L16: =SUMPRODUCT($B16:$G16,zones!$B$26:$G$26) -> 26.21152479 | M16: =SUMPRODUCT($B16:$G16,zones!$B$27:$G$27) -> 1.717374154 | N16: =SUMPRODUCT($B16:$G16,zones!$B$28:$G$28) -> 18.36219709 | O16: =SUMPRODUCT($B16:$G16,zones!$B$29:$G$29) -> 1.706749381 | P16: =SUMPRODUCT($B16:$G16,zones!$B$30:$G$30) -> 25.09727216 | Q16: =SUMPRODUCT($B16:$G16,zones!$B$31:$G$31) -> -1.527892989 | R16: =SUMPRODUCT($B16:$G16,zones!$B$32:$G$32) -> 43.87071808 | S16: =SUMPRODUCT($B16:$G16,zones!$B$33:$G$33) -> -2.829054146 | T16: =SUMPRODUCT($B16:$G16,zones!$B$34:$G$34) -> -0.1019623775 | U16: =SUMPRODUCT($B16:$G16,zones!$B$35:$G$35) -> 16.50010245 | W16: AP | X16: 26.21152479 | Y16: 1.717374154 | Z16: 18.36219709 | AA16: 1.706749381 | AB16: 25.09727216 | AC16: -1.527892989 | AD16: 43.87071808 | AE16: -2.829054146 | AF16: -0.1019623775 | AG16: 16.50010245

Sheet AAF + CP
A1: AAF
D2: physical flow | R2: absolute physical flow
A3: start | B3: end | C3: type | D3: 11 | E3: 22 | F3: 33 | G3: 44 | H3: 55 | I3: 66 | J3: 77 | K3: 88 | L3: 00 | M3: AVG | O3: start | P3: end | Q3: type | R3: 11 | S3: 22 | T3: 33 | U3: 44 | V3: 55 | W3: 66 | X3: 77 | Y3: 88 | Z3: 00 | AA3: AVG
A4: A | B4: B | C4: ext | D4: =-PTDF!L3-PTDF!L4 -> -7.987360818 | E4: =-PTDF!M3-PTDF!M4 -> -12.2663084 | F4: =-PTDF!N3-PTDF!N4 -> -22.98855995 | G4: =-PTDF!O3-PTDF!O4 -> -18.81794177 | H4: =-PTDF!P3-PTDF!P4 -> 4.926292587 | I4: =-PTDF!Q3-PTDF!Q4 -> 5.915385146 | J4: =-PTDF!R3-PTDF!R4 -> 7.287737904 | K4: =-PTDF!S3-PTDF!S4 -> 8.832925722 | L4: =-PTDF!T3-PTDF!T4 -> -3.708545996 | M4: =-PTDF!U3-PTDF!U4 -> -2.988871333 | O4: A | P4: B | Q4: ext | R4: =ABS(D4) -> 7.987360818 | S4: =ABS(E4) -> 12.2663084 | T4: 22.98855995 | U4: 18.81794177 | V4: 4.926292587 | W4: 5.915385146 | X4: =ABS(J4) -> 7.287737904 | Y4: =ABS(K4) -> 8.832925722 | Z4: =ABS(L4) -> 3.708545996 | AA4: 2.988871333
A5: A | B5: C | C5: ext | D5: =-PTDF!L6-PTDF!L13 -> 7.987360818 | E5: =-PTDF!M6-PTDF!M13 -> 12.2663084 | F5: =-PTDF!N6-PTDF!N13 -> 22.98855995 | G5: =-PTDF!O6-PTDF!O13 -> 18.81794177 | H5: =-PTDF!P6-PTDF!P13 -> -4.926292587 | I5: =-PTDF!Q6-PTDF!Q13 -> -5.915385146 | J5: =-PTDF!R6-PTDF!R13 -> -7.287737904 | K5: =-PTDF!S6-PTDF!S13 -> -8.832925722 | L5: =-PTDF!T6-PTDF!T13 -> 3.708545996 | M5: =-PTDF!U6-PTDF!U13 -> 2.988871333 | O5: A | P5: C | Q5: ext | R5: =ABS(D5) -> 7.987360818 | S5: =ABS(E5) -> 12.2663084 | T5: =ABS(F5) -> 22.98855995 | U5: =ABS(G5) -> 18.81794177 | V5: =ABS(H5) -> 4.926292587 | W5: =ABS(I5) -> 5.915385146 | X5: =ABS(J5) -> 7.287737904 | Y5: =ABS(K5) -> 8.832925722 | Z5: =ABS(L5) -> 3.708545996 | AA5: 2.988871333
A6: B | B6: C | C6: int | D6: =PTDF!L5+PTDF!L11+PTDF!L9 -> 35.88591992 | E6: =PTDF!M5+PTDF!M11+PTDF!M9 -> 55.89935461 | F6: =PTDF!N5+PTDF!N11+PTDF!N9 -> 100.2694729 | G6: =PTDF!O5+PTDF!O11+PTDF!O9 -> 82.7562553 | H6: =PTDF!P5+PTDF!P11+PTDF!P9 -> -21.63589481 | I6: =PTDF!Q5+PTDF!Q11+PTDF!Q9 -> -25.03908637 | J6: =PTDF!R5+PTDF!R11+PTDF!R9 -> -34.97513714 | K6: =PTDF!S5+PTDF!S11+PTDF!S9 -> -40.30474078 | L6: =PTDF!T5+PTDF!T11+PTDF!T9 -> 17.36887679 | M6: =PTDF!U5+PTDF!U11+PTDF!U9 -> 13.7774083 | O6: B | P6: C | Q6: int | R6: 35.88591992 | S6: 55.89935461 | T6: 100.2694729 | U6: 82.7562553 | V6: 21.63589481 | W6: 25.03908637 | X6: 34.97513714 | Y6: 40.30474078 | Z6: 17.36887679 | AA6: 13.7774083
A7: B | B7: D | C7: ext | D7: =PTDF!L7+PTDF!L8 -> 14.12671927 | E7: =PTDF!M7+PTDF!M8 -> 16.834337 | F7: =PTDF!N7+PTDF!N8 -> 6.741967106 | G7: =PTDF!O7+PTDF!O8 -> 6.425802935 | H7: =PTDF!P7+PTDF!P8 -> 5.062187399 | I7: =PTDF!Q7+PTDF!Q8 -> 3.954471519 | J7: =PTDF!R7+PTDF!R8 -> -9.737124953 | K7: =PTDF!S7+PTDF!S8 -> -12.86233349 | L7: =PTDF!T7+PTDF!T8 -> 7.922577216 | M7: =PTDF!U7+PTDF!U8 -> 9.233720368 | O7: B | P7: D | Q7: ext | R7: 14.12671927 | S7: 16.834337 | T7: 6.741967106 | U7: 6.425802935 | V7: 5.062187399 | W7: 3.954471519 | X7: 9.737124953 | Y7: 12.86233349 | Z7: 7.922577216 | AA7: 9.233720368
A8: C | B8: E | C8: int | D8: =PTDF!L12+PTDF!L10 -> 32.87328073 | E8: =PTDF!M12+PTDF!M10 -> 22.165663 | F8: =PTDF!N12+PTDF!N10 -> -46.74196711 | G8: =PTDF!O12+PTDF!O10 -> -38.42580294 | H8: =PTDF!P12+PTDF!P10 -> 41.9378126 | I8: =PTDF!Q12+PTDF!Q10 -> 34.04552848 | J8: =PTDF!R12+PTDF!R10 -> -0.2628750468 | K8: =PTDF!S12+PTDF!S10 -> -19.13766651 | L8: =PTDF!T12+PTDF!T10 -> 17.07742278 | M8: =PTDF!U12+PTDF!U10 -> 28.76627963 | O8: C | P8: E | Q8: int | R8: 32.87328073 | S8: 22.165663 | T8: 46.74196711 | U8: 38.42580294 | V8: 41.9378126 | W8: 34.04552848 | X8: 0.2628750468 | Y8: 19.13766651 | Z8: 17.07742278 | AA8: 28.76627963
A9: D | B9: E | C9: ext | D9: =-PTDF!L14 -> 14.12671927 | E9: =-PTDF!M14 -> 16.834337 | F9: =-PTDF!N14 -> 6.741967106 | G9: =-PTDF!O14 -> 6.425802935 | H9: =-PTDF!P14 -> 5.062187399 | I9: =-PTDF!Q14 -> 3.954471519 | J9: =-PTDF!R14 -> -9.737124953 | K9: =-PTDF!S14 -> -12.86233349 | L9: =-PTDF!T14 -> 7.922577216 | M9: =-PTDF!U14 -> 9.233720368 | O9: D | P9: E | Q9: ext | R9: 14.12671927 | S9: 16.834337 | T9: 6.741967106 | U9: 6.425802935 | V9: 5.062187399 | W9: 3.954471519 | X9: 9.737124953 | Y9: 12.86233349 | Z9: 7.922577216 | AA9: 9.233720368
A10: E | B10: F | C10: int | D10: =PTDF!L15+PTDF!L16 -> 48.5 | E10: =PTDF!M15+PTDF!M16 -> -1.5 | F10: =PTDF!N15+PTDF!N16 -> 30 | G10: =PTDF!O15+PTDF!O16 -> -2 | H10: =PTDF!P15+PTDF!P16 -> 50.5 | I10: =PTDF!Q15+PTDF!Q16 -> -2 | J10: =PTDF!R15+PTDF!R16 -> 90 | K10: =PTDF!S15+PTDF!S16 -> -2 | L10: =PTDF!T15+PTDF!T16 -> -2 | M10: =PTDF!U15+PTDF!U16 -> 31 | O10: E | P10: F | Q10: int | R10: 48.5 | S10: 1.5 | T10: 30 | U10: 2 | V10: 50.5 | W10: 2 | X10: 90 | Y10: 2 | Z10: 2 | AA10: 31
O11: sum | R11: =SUM(R4:R10) -> 161.4873608 | S11: =SUM(S4:S10) -> 137.7663084 | T11: 236.4724942 | U11: 173.6695476 | V11: 134.0506674 | W11: 80.82432818 | X11: 159.2877379 | Y11: 104.8329257 | Z11: 59.708546 | AA11: =SUM(AA4:AA10) -> 97.98887133
A12: Physical flow [MW]
A13: start | B13: end | C13: type | D13: 11 | E13: 22 | F13: 33 | G13: 44 | H13: 55 | I13: 66 | J13: 77 | K13: 88 | L13: 00 | M13: AVG | R13: relative physical flow
A14: B | B14: C | C14: int | D14: =D6 -> 35.88591992 | E14: =E6 -> 55.89935461 | F14: 100.2694729 | G14: 82.7562553 | H14: -21.63589481 | I14: -25.03908637 | J14: -34.97513714 | K14: -40.30474078 | L14: 17.36887679 | M14: =M6 -> 13.7774083 | O14: start | P14: end | Q14: type | R14: 11 | S14: 22 | T14: 33 | U14: 44 | V14: 55 | W14: 66 | X14: 77 | Y14: 88 | Z14: 00 | AA14: AVG
A15: C | B15: E | C15: int | D15: =D8 -> 32.87328073 | E15: =E8 -> 22.165663 | F15: -46.74196711 | G15: -38.42580294 | H15: 41.9378126 | I15: 34.04552848 | J15: -0.2628750468 | K15: -19.13766651 | L15: 17.07742278 | M15: =M8 -> 28.76627963 | O15: A | P15: B | Q15: ext | R15: =R4/R$11 -> 0.04946121342 | S15: =S4/S$11 -> 0.08903706965 | T15: 0.09721451972 | U15: 0.1083548729 | V15: 0.03674948199 | W15: 0.07318817588 | X15: 0.04575203339 | Y15: 0.08425717074 | Z15: 0.06211080732 | AA15: 0.03050215083
A16: E | B16: F | C16: int | D16: =D10 -> 48.5 | E16: =E10 -> -1.5 | F16: 30 | G16: -2 | H16: 50.5 | I16: -2 | J16: 90 | K16: -2 | L16: -2 | M16: =M10 -> 31 | O16: A | P16: C | Q16: ext | R16: =R5/R$11 -> 0.04946121342 | S16: 0.08903706965 | T16: 0.09721451972 | U16: 0.1083548729 | V16: 0.03674948199 | W16: 0.07318817588 | X16: 0.04575203339 | Y16: 0.08425717074 | Z16: 0.06211080732 | AA16: 0.03050215083
A17: B | B17: C | C17: ext | D17: =D5 -> 7.987360818 | E17: =E5 -> 12.2663084 | F17: 22.98855995 | G17: 18.81794177 | H17: -4.926292587 | I17: -5.915385146 | J17: -7.287737904 | K17: -8.832925722 | L17: 3.708545996 | M17: =M5 -> 2.988871333 | O17: B | P17: C | Q17: int | R17: 0.2222212298 | S17: 0.4057548994 | T17: 0.4240217168 | U17: 0.476515638 | V17: 0.1614008735 | W17: 0.3097964058 | X17: 0.2195720625 | Y17: 0.3844664308 | Z17: 0.2908943184 | AA17: 0.1406017654
A18: B | B18: E | C18: ext | D18: =D9 -> 14.12671927 | E18: =E9 -> 16.834337 | F18: 6.741967106 | G18: 6.425802935 | H18: 5.062187399 | I18: 3.954471519 | J18: -9.737124953 | K18: -12.86233349 | L18: 7.922577216 | M18: =M9 -> 9.233720368 | O18: B | P18: D | Q18: ext | R18: 0.08747879211 | S18: 0.1221948762 | T18: 0.02851057638 | U18: 0.03700017086 | V18: 0.03776323906 | W18: 0.04892674777 | X18: 0.06112915584 | Y18: 0.1226936423 | Z18: 0.1326874919 | AA18: 0.09423233723
O19: C | P19: E | Q19: int | R19: 0.2035656572 | S19: 0.1608932058 | T19: 0.1976634419 | U19: 0.2212581507 | V19: 0.3128504574 | W19: 0.4212287222 | X19: 0.00165031565 | Y19: 0.1825539674 | Z19: 0.2860130405 | AA19: 0.2935668024
A20: Commercial flow [MW] | O20: D | P20: E | Q20: ext | R20: 0.08747879211 | S20: 0.1221948762 | T20: 0.02851057638 | U20: 0.03700017086 | V20: 0.03776323906 | W20: 0.04892674777 | X20: 0.06112915584 | Y20: 0.1226936423 | Z20: 0.1326874919 | AA20: 0.09423233723
A21: start | B21: end | C21: type | D21: 11 | E21: 22 | F21: 33 | G21: 44 | H21: 55 | I21: 66 | J21: 77 | K21: 88 | L21: 00 | M21: AVG | O21: E | P21: F | Q21: int | R21: 0.3003331019 | S21: 0.01088800315 | T21: 0.1268646491 | U21: 0.01151612374 | V21: 0.376723227 | W21: 0.02474502473 | X21: 0.5650152434 | Y21: 0.01907797561 | Z21: 0.0334960426 | AA21: 0.316362456
A22: B | B22: C | C22: int | D22: ='external data'!B13 -> 58 | E22: ='external data'!C13 -> 85 | F22: ='external data'!D13 -> 130 | G22: ='external data'!E13 -> 108 | H22: ='external data'!F13 -> -21.5 | I22: ='external data'!G13 -> -27 | J22: ='external data'!H13 -> -52 | K22: ='external data'!I13 -> -62 | L22: ='external data'!J13 -> 29 | M22: ='external data'!K13 -> 26
A23: C | B23: E | C23: int | D23: =-'external data'!B17-'external data'!B16 -> 47 | E23: =-'external data'!C17-'external data'!C16 -> 39 | F23: =-'external data'!D17-'external data'!D16 -> -40 | G23: =-'external data'!E17-'external data'!E16 -> -32 | H23: =-'external data'!F17-'external data'!F16 -> 47 | I23: =-'external data'!G17-'external data'!G16 -> 38 | J23: =-'external data'!H17-'external data'!H16 -> -10 | K23: =-'external data'!I17-'external data'!I16 -> -32 | L23: =-'external data'!J17-'external data'!J16 -> 25 | M23: =-'external data'!K17-'external data'!K16 -> 38
A24: E | B24: F | C24: int | D24: =-'external data'!B17 -> 48.5 | E24: =-'external data'!C17 -> -1.5 | F24: =-'external data'!D17 -> 30 | G24: =-'external data'!E17 -> -2 | H24: =-'external data'!F17 -> 50.5 | I24: =-'external data'!G17 -> -2 | J24: =-'external data'!H17 -> 90 | K24: =-'external data'!I17 -> -2 | L24: =-'external data'!J17 -> -2 | M24: =-'external data'!K17 -> 31
A25: B | B25: C | C25: ext | D25: 0 | E25: 0 | F25: 0 | G25: 0 | H25: 0 | I25: 0 | J25: 0 | K25: 0 | L25: 0 | M25: 0
A26: B | B26: E | C26: ext | D26: 0 | E26: 0 | F26: 0 | G26: 0 | H26: 0 | I26: 0 | J26: 0 | K26: 0 | L26: 0 | M26: 0 | O26: Physical flow [MW]
O27: start | P27: end | Q27: type | R27: 11 | S27: 22 | T27: 33 | U27: 44 | V27: 55 | W27: 66 | X27: 77 | Y27: 88 | Z27: 00 | AA27: AVG
A28: CP | O28: B | P28: C | Q28: int | R28: =ABS(D14)-ABS(D22) -> -22.11408008 | S28: =ABS(E14)-ABS(E22) -> -29.10064539 | T28: -29.73052705 | U28: -25.2437447 | V28: 0.1358948112 | W28: -1.960913628 | X28: -17.02486286 | Y28: -21.69525922 | Z28: -11.63112321
D29: spread | O29: C | P29: E | Q29: int | R29: =ABS(D15)-ABS(D23) -> -14.12671927 | S29: =ABS(E15)-ABS(E23) -> -16.834337 | T29: =ABS(F15)-ABS(F23) -> 6.741967106 | U29: =ABS(G15)-ABS(G23) -> 6.425802935 | V29: =ABS(H15)-ABS(H23) -> -5.062187399 | W29: =ABS(I15)-ABS(I23) -> -3.954471519 | X29: =ABS(J15)-ABS(J23) -> -9.737124953 | Y29: =ABS(K15)-ABS(K23) -> -12.86233349 | Z29: =ABS(L15)-ABS(L23) -> -7.922577216
A30: start | B30: end | C30: type | D30: 11 | E30: 22 | F30: 33 | G30: 44 | H30: 55 | I30: 66 | J30: 77 | K30: 88 | L30: 00 | M30: AVG | O30: E | P30: F | Q30: int | R30: 1.135447292e-11 | S30: -1.215028078e-11 | T30: 2.700062396e-11 | U30: -2.006572686e-11 | V30: -2.032152224e-12 | W30: 6.934897101e-12 | X30: -6.252776075e-13 | Y30: 8.924416761e-12 | Z30: -3.353761713e-12
A31: B | B31: C | C31: int | D31: =ABS('external data'!B22-'external data'!B23) -> 2 | E31: =ABS('external data'!C22-'external data'!C23) -> 1 | F31: =ABS('external data'!D22-'external data'!D23) -> 5.5 | G31: =ABS('external data'!E22-'external data'!E23) -> 10.6 | H31: =ABS('external data'!F22-'external data'!F23) -> 0 | I31: =ABS('external data'!G22-'external data'!G23) -> 0 | J31: =ABS('external data'!H22-'external data'!H23) -> 0 | K31: =ABS('external data'!I22-'external data'!I23) -> 0 | L31: =ABS('external data'!J22-'external data'!J23) -> 1.8 | M31: =ABS('external data'!K22-'external data'!K23) -> 1.5 | O31: B | P31: C | Q31: ext | R31: 7.987360818 | S31: 12.2663084 | T31: 22.98855995 | U31: 18.81794177 | V31: 4.926292587 | W31: 5.915385146 | X31: 7.287737904 | Y31: 8.832925722 | Z31: 3.708545996
A32: C | B32: E | C32: int | D32: =ABS('external data'!B23-'external data'!B25) -> 8.3 | E32: =ABS('external data'!C23-'external data'!C25) -> 10 | F32: =ABS('external data'!D23-'external data'!D25) -> 0 | G32: =ABS('external data'!E23-'external data'!E25) -> 0 | H32: =ABS('external data'!F23-'external data'!F25) -> 10.1 | I32: =ABS('external data'!G23-'external data'!G25) -> 7.9 | J32: =ABS('external data'!H23-'external data'!H25) -> 0 | K32: =ABS('external data'!I23-'external data'!I25) -> 0 | L32: =ABS('external data'!J23-'external data'!J25) -> 11.8 | M32: =ABS('external data'!K23-'external data'!K25) -> 8.7 | O32: B | P32: E | Q32: ext | R32: 14.12671927 | S32: 16.834337 | T32: 6.741967106 | U32: 6.425802935 | V32: 5.062187399 | W32: 3.954471519 | X32: 9.737124953 | Y32: 12.86233349 | Z32: 7.922577216
A33: E | B33: F | C33: int | D33: =ABS('external data'!B25-'external data'!B26) -> 0 | E33: =ABS('external data'!C25-'external data'!C26) -> 13.4 | F33: =ABS('external data'!D25-'external data'!D26) -> 0.1 | G33: =ABS('external data'!E25-'external data'!E26) -> 21.3 | H33: =ABS('external data'!F25-'external data'!F26) -> 0.2 | I33: =ABS('external data'!G25-'external data'!G26) -> 12.4 | J33: =ABS('external data'!H25-'external data'!H26) -> 4.9 | K33: =ABS('external data'!I25-'external data'!I26) -> 5.2 | L33: =ABS('external data'!J25-'external data'!J26) -> 18.5 | M33: =ABS('external data'!K25-'external data'!K26) -> 0.4
A34: B | B34: C | C34: ext | D34: =ABS('external data'!B22-'external data'!B23) -> 2 | E34: =ABS('external data'!C22-'external data'!C23) -> 1 | F34: =ABS('external data'!D22-'external data'!D23) -> 5.5 | G34: =ABS('external data'!E22-'external data'!E23) -> 10.6 | H34: =ABS('external data'!F22-'external data'!F23) -> 0 | I34: =ABS('external data'!G22-'external data'!G23) -> 0 | J34: =ABS('external data'!H22-'external data'!H23) -> 0 | K34: =ABS('external data'!I22-'external data'!I23) -> 0 | L34: =ABS('external data'!J22-'external data'!J23) -> 1.8 | M34: =ABS('external data'!K22-'external data'!K23) -> 1.5
A35: B | B35: E | C35: ext | D35: =ABS('external data'!B22-'external data'!B25) -> 10.3 | E35: =ABS('external data'!C22-'external data'!C25) -> 11 | F35: =ABS('external data'!D22-'external data'!D25) -> 5.5 | G35: =ABS('external data'!E22-'external data'!E25) -> 10.6 | H35: =ABS('external data'!F22-'external data'!F25) -> 10.1 | I35: =ABS('external data'!G22-'external data'!G25) -> 7.9 | J35: =ABS('external data'!H22-'external data'!H25) -> 0 | K35: =ABS('external data'!I22-'external data'!I25) -> 0 | L35: =ABS('external data'!J22-'external data'!J25) -> 13.6 | M35: =ABS('external data'!K22-'external data'!K25) -> 10.2
R36: =ABS(R28)/D22 -> 0.3812772428 | S36: 0.342360534 | T36: =ABS(T28)/F22 -> 0.2286963619 | U36: =ABS(U28)/G22 -> 0.2337383769 | V36: -0.006320688894 | W36: -0.07262643065 | X36: -0.3274012088 | Y36: -0.3499235357 | Z36: 0.4010732142
R37: =ABS(R29)/D23 -> 0.300568495 | S37: =ABS(S29)/E23 -> 0.4316496666 | T37: -0.1685491777 | U37: =ABS(U29)/G23 -> -0.2008063417 | V37: =ABS(V29)/H23 -> 0.1077061149 | W37: =ABS(W29)/I23 -> 0.10406504 | X37: =ABS(X29)/J23 -> -0.9737124953 | Y37: =ABS(Y29)/K23 -> -0.4019479217 | Z37: =ABS(Z29)/L23 -> 0.3169030886
R38: 2.341128437e-13 | S38: -8.100187188e-12 | T38: =ABS(T30)/F24 -> 9.000207986e-13 | U38: -1.003286343e-11 | V38: 4.02406381e-14 | W38: -3.467448551e-12 | X38: 6.947528972e-15 | Y38: -4.462208381e-12 | Z38: -1.676880856e-12

Sheet CI
A1: Congestion Income
D2: 11 | E2: 22 | F2: 33 | G2: 44 | H2: 55 | I2: 66 | J2: 77 | K2: 88 | L2: 00 | M2: AVG | N2: sum
A3: Total Congestion Income | D3: =-SUMPRODUCT('external data'!B12:B17,'external data'!B21:B26) -> 506.1 | E3: =-SUMPRODUCT('external data'!C12:C17,'external data'!C21:C26) -> 495.1 | F3: =-SUMPRODUCT('external data'!D12:D17,'external data'!D21:D26) -> 718 | G3: =-SUMPRODUCT('external data'!E12:E17,'external data'!E21:E26) -> 1187.4 | H3: =-SUMPRODUCT('external data'!F12:F17,'external data'!F21:F26) -> 484.8 | I3: =-SUMPRODUCT('external data'!G12:G17,'external data'!G21:G26) -> 325 | J3: =-SUMPRODUCT('external data'!H12:H17,'external data'!H21:H26) -> 441 | K3: =-SUMPRODUCT('external data'!I12:I17,'external data'!I21:I26) -> 10.4 | L3: =-SUMPRODUCT('external data'!J12:J17,'external data'!J21:J26) -> 384.2 | M3: =-SUMPRODUCT('external data'!K12:K17,'external data'!K21:K26) -> 382 | N3: =SUM(D3:L3) -> 4552
A4: Number of situations | D4: 2689 | E4: 887 | F4: 26 | G4: 103 | H4: 1752 | I4: 771 | J4: 6 | K4: 317 | L4: 539
A6: Flow - Based world | R6: NTC world
D7: k | U7: CI
A8: start | B8: end | C8: type | D8: 11 | E8: 22 | F8: 33 | G8: 44 | H8: 55 | I8: 66 | J8: 77 | K8: 88 | L8: 0 | M8: AVG | R8: start | S8: end | T8: type | U8: 11 | V8: 22 | W8: 33 | X8: 44 | Y8: 55 | Z8: 66 | AA8: 77 | AB8: 88 | AC8: 0 | AD8: AVG
A9: B | B9: C | C9: int | D9: =ABS('AAF + CP'!D31*'AAF + CP'!D6) -> 71.77183983 | E9: =ABS('AAF + CP'!E31*'AAF + CP'!E6) -> 55.89935461 | F9: =ABS('AAF + CP'!F31*'AAF + CP'!F6) -> 551.4821012 | G9: =ABS('AAF + CP'!G31*'AAF + CP'!G6) -> 877.2163062 | H9: =ABS('AAF + CP'!H31*'AAF + CP'!H6) -> 0 | I9: =ABS('AAF + CP'!I31*'AAF + CP'!I6) -> 0 | J9: =ABS('AAF + CP'!J31*'AAF + CP'!J6) -> 0 | K9: =ABS('AAF + CP'!K31*'AAF + CP'!K6) -> 0 | L9: =ABS('AAF + CP'!L31*'AAF + CP'!L6) -> 31.26397822 | M9: =ABS('AAF + CP'!M31*'AAF + CP'!M6) -> 20.66611245 | R9: B | S9: C | T9: int | U9: =ABS('AAF + CP'!D22)*'AAF + CP'!D31 -> 116 | V9: =ABS('AAF + CP'!E22)*'AAF + CP'!E31 -> 85 | W9: =ABS('AAF + CP'!F22)*'AAF + CP'!F31 -> 715 | X9: =ABS('AAF + CP'!G22)*'AAF + CP'!G31 -> 1144.8 | Y9: =ABS('AAF + CP'!H22)*'AAF + CP'!H31 -> 0 | Z9: =ABS('AAF + CP'!I22)*'AAF + CP'!I31 -> 0 | AA9: =ABS('AAF + CP'!J22)*'AAF + CP'!J31 -> 0 | AB9: =ABS('AAF + CP'!K22)*'AAF + CP'!K31 -> 0 | AC9: =ABS('AAF + CP'!L22)*'AAF + CP'!L31 -> 52.2 | AD9: =ABS('AAF + CP'!M22)*'AAF + CP'!M31 -> 39
A10: C | B10: E | C10: int | D10: =ABS('AAF + CP'!D32*'AAF + CP'!D8) -> 272.8482301 | E10: =ABS('AAF + CP'!E32*'AAF + CP'!E8) -> 221.65663 | F10: =ABS('AAF + CP'!F32*'AAF + CP'!F8) -> 0 | G10: =ABS('AAF + CP'!G32*'AAF + CP'!G8) -> 0 | H10: =ABS('AAF + CP'!H32*'AAF + CP'!H8) -> 423.5719073 | I10: =ABS('AAF + CP'!I32*'AAF + CP'!I8) -> 268.959675 | J10: =ABS('AAF + CP'!J32*'AAF + CP'!J8) -> 0 | K10: =ABS('AAF + CP'!K32*'AAF + CP'!K8) -> 0 | L10: =ABS('AAF + CP'!L32*'AAF + CP'!L8) -> 201.5135888 | M10: =ABS('AAF + CP'!M32*'AAF + CP'!M8) -> 250.2666328 | R10: C | S10: E | T10: int | U10: =ABS('AAF + CP'!D23)*'AAF + CP'!D32 -> 390.1 | V10: =ABS('AAF + CP'!E23)*'AAF + CP'!E32 -> 390 | W10: =ABS('AAF + CP'!F23)*'AAF + CP'!F32 -> 0 | X10: =ABS('AAF + CP'!G23)*'AAF + CP'!G32 -> 0 | Y10: =ABS('AAF + CP'!H23)*'AAF + CP'!H32 -> 474.7 | Z10: =ABS('AAF + CP'!I23)*'AAF + CP'!I32 -> 300.2 | AA10: =ABS('AAF + CP'!J23)*'AAF + CP'!J32 -> 0 | AB10: =ABS('AAF + CP'!K23)*'AAF + CP'!K32 -> 0 | AC10: =ABS('AAF + CP'!L23)*'AAF + CP'!L32 -> 295 | AD10: =ABS('AAF + CP'!M23)*'AAF + CP'!M32 -> 330.6
A11: E | B11: F | C11: int | D11: =ABS('AAF + CP'!D33*'AAF + CP'!D10) -> 0 | E11: =ABS('AAF + CP'!E33*'AAF + CP'!E10) -> 20.1 | F11: =ABS('AAF + CP'!F33*'AAF + CP'!F10) -> 3 | G11: =ABS('AAF + CP'!G33*'AAF + CP'!G10) -> 42.6 | H11: =ABS('AAF + CP'!H33*'AAF + CP'!H10) -> 10.1 | I11: =ABS('AAF + CP'!I33*'AAF + CP'!I10) -> 24.8 | J11: =ABS('AAF + CP'!J33*'AAF + CP'!J10) -> 441 | K11: =ABS('AAF + CP'!K33*'AAF + CP'!K10) -> 10.4 | L11: =ABS('AAF + CP'!L33*'AAF + CP'!L10) -> 37 | M11: =ABS('AAF + CP'!M33*'AAF + CP'!M10) -> 12.4 | R11: E | S11: F | T11: int | U11: =ABS('AAF + CP'!D24)*'AAF + CP'!D33 -> 0 | V11: =ABS('AAF + CP'!E24)*'AAF + CP'!E33 -> 20.1 | W11: =ABS('AAF + CP'!F24)*'AAF + CP'!F33 -> 3 | X11: =ABS('AAF + CP'!G24)*'AAF + CP'!G33 -> 42.6 | Y11: =ABS('AAF + CP'!H24)*'AAF + CP'!H33 -> 10.1 | Z11: =ABS('AAF + CP'!I24)*'AAF + CP'!I33 -> 24.8 | AA11: =ABS('AAF + CP'!J24)*'AAF + CP'!J33 -> 441 | AB11: =ABS('AAF + CP'!K24)*'AAF + CP'!K33 -> 10.4 | AC11: =ABS('AAF + CP'!L24)*'AAF + CP'!L33 -> 37 | AD11: =ABS('AAF + CP'!M24)*'AAF + CP'!M33 -> 12.4
A12: B | B12: C | C12: ext | D12: =ABS('AAF + CP'!D5*'AAF + CP'!D34) -> 15.97472164 | E12: =ABS('AAF + CP'!E5*'AAF + CP'!E34) -> 12.2663084 | F12: =ABS('AAF + CP'!F5*'AAF + CP'!F34) -> 126.4370797 | G12: =ABS('AAF + CP'!G5*'AAF + CP'!G34) -> 199.4701827 | H12: =ABS('AAF + CP'!H5*'AAF + CP'!H34) -> 0 | I12: =ABS('AAF + CP'!I5*'AAF + CP'!I34) -> 0 | J12: =ABS('AAF + CP'!J5*'AAF + CP'!J34) -> 0 | K12: =ABS('AAF + CP'!K5*'AAF + CP'!K34) -> 0 | L12: =ABS('AAF + CP'!L5*'AAF + CP'!L34) -> 6.675382793 | M12: =ABS('AAF + CP'!M5*'AAF + CP'!M34) -> 4.483306999 | R12: B | S12: C | T12: ext | U12: =ABS('AAF + CP'!D25)*'AAF + CP'!D34 -> 0 | V12: =ABS('AAF + CP'!E25)*'AAF + CP'!E34 -> 0 | W12: =ABS('AAF + CP'!F25)*'AAF + CP'!F34 -> 0 | X12: =ABS('AAF + CP'!G25)*'AAF + CP'!G34 -> 0 | Y12: =ABS('AAF + CP'!H25)*'AAF + CP'!H34 -> 0 | Z12: =ABS('AAF + CP'!I25)*'AAF + CP'!I34 -> 0 | AA12: =ABS('AAF + CP'!J25)*'AAF + CP'!J34 -> 0 | AB12: =ABS('AAF + CP'!K25)*'AAF + CP'!K34 -> 0 | AC12: =ABS('AAF + CP'!L25)*'AAF + CP'!L34 -> 0 | AD12: =ABS('AAF + CP'!M25)*'AAF + CP'!M34 -> 0
A13: B | B13: E | C13: ext | D13: =ABS('AAF + CP'!D9*'AAF + CP'!D35) -> 145.5052084 | E13: =ABS('AAF + CP'!E9*'AAF + CP'!E35) -> 185.177707 | F13: =ABS('AAF + CP'!F9*'AAF + CP'!F35) -> 37.08081909 | G13: =ABS('AAF + CP'!G9*'AAF + CP'!G35) -> 68.11351111 | H13: =ABS('AAF + CP'!H9*'AAF + CP'!H35) -> 51.12809273 | I13: =ABS('AAF + CP'!I9*'AAF + CP'!I35) -> 31.240325 | J13: =ABS('AAF + CP'!J9*'AAF + CP'!J35) -> 0 | K13: =ABS('AAF + CP'!K9*'AAF + CP'!K35) -> 0 | L13: =ABS('AAF + CP'!L9*'AAF + CP'!L35) -> 107.7470501 | M13: =ABS('AAF + CP'!M9*'AAF + CP'!M35) -> 94.18394776 | R13: B | S13: E | T13: ext | U13: =ABS('AAF + CP'!D26)*'AAF + CP'!D35 -> 0 | V13: =ABS('AAF + CP'!E26)*'AAF + CP'!E35 -> 0 | W13: =ABS('AAF + CP'!F26)*'AAF + CP'!F35 -> 0 | X13: =ABS('AAF + CP'!G26)*'AAF + CP'!G35 -> 0 | Y13: =ABS('AAF + CP'!H26)*'AAF + CP'!H35 -> 0 | Z13: =ABS('AAF + CP'!I26)*'AAF + CP'!I35 -> 0 | AA13: =ABS('AAF + CP'!J26)*'AAF + CP'!J35 -> 0 | AB13: =ABS('AAF + CP'!K26)*'AAF + CP'!K35 -> 0 | AC13: =ABS('AAF + CP'!L26)*'AAF + CP'!L35 -> 0 | AD13: =ABS('AAF + CP'!M26)*'AAF + CP'!M35 -> 0
A14: sum | D14: =SUM(D9:D13) -> 506.1 | E14: 495.1 | F14: 718 | G14: 1187.4 | H14: 484.8 | I14: 325 | J14: 441 | K14: 10.4 | L14: 384.2 | M14: =SUM(M9:M13) -> 382
T15: zone | U15: 11 | V15: 22 | W15: 33 | X15: 44 | Y15: 55 | Z15: 66 | AA15: 77 | AB15: 88 | AC15: 0 | AD15: AVG | AE15: sum | AF15: sum (00 - 99) | AG15: rel. cases | AH15: rel. AVG
A16: start | B16: end | C16: type | D16: 11 | E16: 22 | F16: 33 | G16: 44 | H16: 55 | I16: 66 | J16: 77 | K16: 88 | L16: 0 | M16: AVG | T16: A | U16: 0 | V16: 0 | W16: 0 | X16: 0 | Y16: 0 | Z16: 0 | AA16: 0 | AB16: 0 | AC16: 0 | AD16: 0 | AE16: =SUM(U16:AC16) -> 0 | AF16: =SUMPRODUCT($D$4:$L$4,U16:AC16) -> 0 | AG16: =AF16/$AF$22 -> 0 | AH16: =AD16/AD$22 -> 0
A17: B | B17: C | C17: int | D17: =D9/$D$14 -> 0.1418135543 | E17: =E9/$E$14 -> 0.11290518 | F17: =F9/$F$14 -> 0.7680809209 | G17: =G9/$G$14 -> 0.7387706806 | H17: =H9/$H$14 -> 0 | I17: =I9/$I$14 -> 0 | J17: =J9/$J$14 -> 0 | K17: =K9/$K$14 -> 0 | L17: =L9/$L$14 -> 0.08137422753 | M17: =M9/$M$14 -> 0.05409977081 | T17: B | U17: =0.5*U9 -> 58 | V17: 42.5 | W17: 357.5 | X17: 572.4 | Y17: 0 | Z17: 0 | AA17: 0 | AB17: 0 | AC17: 26.1 | AD17: 19.5 | AE17: =SUM(U17:AC17) -> 1056.5 | AF17: 275979.6 | AG17: 0.08481246762 | AH17: =AD17/AD$22 -> 0.05104712042
A18: C | B18: E | C18: int | D18: =D10/$D$14 -> 0.5391192059 | E18: =E10/$E$14 -> 0.4477007272 | F18: =F10/$F$14 -> 0 | G18: =G10/$G$14 -> 0 | H18: =H10/$H$14 -> 0.8737044292 | I18: =I10/$I$14 -> 0.8275682308 | J18: =J10/$J$14 -> 0 | K18: =K10/$K$14 -> 0 | L18: =L10/$L$14 -> 0.5245017929 | M18: =M10/$M$14 -> 0.6551482534 | T18: C | U18: =0.5*U9+0.5*U10 -> 253.05 | V18: 237.5 | W18: 357.5 | X18: 572.4 | Y18: 237.35 | Z18: 150.1 | AA18: 0 | AB18: 0 | AC18: 173.6 | AD18: 184.8 | AE18: 1981.5 | AF18: 1584500.85 | AG18: 0.4869397123 | AH18: 0.4837696335
A19: E | B19: F | C19: int | D19: =D11/$D$14 -> 0 | E19: =E11/$E$14 -> 0.04059785902 | F19: =F11/$F$14 -> 0.004178272981 | G19: =G11/$G$14 -> 0.03587670541 | H19: =H11/$H$14 -> 0.02083333333 | I19: =I11/$I$14 -> 0.07630769231 | J19: =J11/$J$14 -> 1 | K19: =K11/$K$14 -> 1 | L19: =L11/$L$14 -> 0.09630400833 | M19: 0.03246073298 | T19: D | U19: 0 | V19: 0 | W19: 0 | X19: 0 | Y19: 0 | Z19: 0 | AA19: 0 | AB19: 0 | AC19: 0 | AD19: 0 | AE19: 0 | AF19: 0 | AG19: 0 | AH19: 0
A20: B | B20: C | C20: ext | D20: =D12/$D$14 -> 0.0315643581 | E20: =E12/$E$14 -> 0.02477541587 | F20: =F12/$F$14 -> 0.1760962113 | G20: =G12/$G$14 -> 0.1679890372 | H20: =H12/$H$14 -> 0 | I20: =I12/$I$14 -> 0 | J20: =J12/$J$14 -> 0 | K20: =K12/$K$14 -> 0 | L20: =L12/$L$14 -> 0.01737476 | M20: 0.01173640576 | T20: E | U20: =0.5*U10+0.5*U11 -> 195.05 | V20: 205.05 | W20: 1.5 | X20: 21.3 | Y20: 242.4 | Z20: 162.5 | AA20: 220.5 | AB20: 5.2 | AC20: 166 | AD20: =0.5*AD10+0.5*AD11 -> 171.5 | AE20: 1219.5 | AF20: 1351019.4 | AG20: 0.4151875324 | AH20: 0.4489528796
A21: B | B21: E | C21: ext | D21: =D13/$D$14 -> 0.2875028817 | E21: =E13/$E$14 -> 0.3740208179 | F21: =F13/$F$14 -> 0.05164459483 | G21: =G13/$G$14 -> 0.05736357682 | H21: =H13/$H$14 -> 0.1054622375 | I21: =I13/$I$14 -> 0.09612407691 | J21: =J13/$J$14 -> 0 | K21: =K13/$K$14 -> 0 | L21: =L13/$L$14 -> 0.2804452112 | M21: 0.2465548371 | T21: F | U21: =0.5*U11 -> 0 | V21: 10.05 | W21: 1.5 | X21: 21.3 | Y21: 5.05 | Z21: 12.4 | AA21: 220.5 | AB21: 5.2 | AC21: 18.5 | AD21: =0.5*AD11 -> 6.2 | AE21: 294.5 | AF21: 42498.15 | AG21: 0.01306028768 | AH21: 0.01623036649
AC22: sum | AD22: =SUM(AD16:AD21) -> 382 | AF22: =SUM(AF16:AF21) -> 3253998
A23: start | B23: end | C23: type | D23: 11 | E23: 22 | F23: 33 | G23: 44 | H23: 55 | I23: 66 | J23: 77 | K23: 88 | L23: 0 | M23: AVG
A24: B | B24: C | C24: int | D24: =D17*D$3 -> 71.77183983 | E24: 55.89935461 | F24: 551.4821012 | G24: 877.2163062 | H24: 0 | I24: 0 | J24: 0 | K24: 0 | L24: 31.26397822 | M24: 20.66611245
A25: C | B25: E | C25: int | D25: =D18*D$3 -> 272.8482301 | E25: 221.65663 | F25: 0 | G25: 0 | H25: 423.5719073 | I25: 268.959675 | J25: 0 | K25: 0 | L25: 201.5135888 | M25: 250.2666328 | T25: =T15 -> zone | U25: =U15 -> 11 | V25: 22 | W25: 33 | X25: 44 | Y25: 55 | Z25: 66 | AA25: 77 | AB25: 88 | AC25: 0 | AD25: =AD15 -> AVG | AE25: =AE15 -> sum | AF25: =AF15 -> sum (00 - 99) | AG25: =AG15 -> rel. cases | AH25: =AH15 -> rel. AVG
A26: E | B26: F | C26: int | D26: =D19*D$3 -> 0 | E26: 20.1 | F26: 3 | G26: 42.6 | H26: 10.1 | I26: 24.8 | J26: 441 | K26: 10.4 | L26: 37 | M26: 12.4 | T26: =T17 -> B | U26: =U17 -> 58 | V26: 42.5 | W26: 357.5 | X26: 572.4 | Y26: 0 | Z26: 0 | AA26: 0 | AB26: 0 | AC26: 26.1 | AD26: =AD17 -> 19.5 | AE26: =AE17 -> 1056.5 | AF26: 275979.6 | AG26: 0.08481246762 | AH26: 0.05104712042
A27: B | B27: C | C27: ext | D27: =D20*D$3 -> 15.97472164 | E27: 12.2663084 | F27: 126.4370797 | G27: 199.4701827 | H27: 0 | I27: 0 | J27: 0 | K27: 0 | L27: 6.675382793 | M27: 4.483306999 | T27: =T18 -> C | U27: =U18 -> 253.05 | V27: 237.5 | W27: 357.5 | X27: 572.4 | Y27: 237.35 | Z27: 150.1 | AA27: 0 | AB27: 0 | AC27: 173.6 | AD27: =AD18 -> 184.8 | AE27: 1981.5 | AF27: 1584500.85 | AG27: 0.4869397123 | AH27: 0.4837696335
A28: B | B28: E | C28: ext | D28: =D21*D$3 -> 145.5052084 | E28: 185.177707 | F28: 37.08081909 | G28: 68.11351111 | H28: 51.12809273 | I28: 31.240325 | J28: 0 | K28: 0 | L28: 107.7470501 | M28: 94.18394776 | T28: =T20 -> E | U28: =U20 -> 195.05 | V28: 205.05 | W28: 1.5 | X28: 21.3 | Y28: 242.4 | Z28: 162.5 | AA28: 220.5 | AB28: 5.2 | AC28: 166 | AD28: =AD20 -> 171.5 | AE28: =AE20 -> 1219.5 | AF28: 1351019.4 | AG28: 0.4151875324 | AH28: 0.4489528796
T29: =T21 -> F | U29: =U21 -> 0 | V29: 10.05 | W29: 1.5 | X29: 21.3 | Y29: 5.05 | Z29: 12.4 | AA29: 220.5 | AB29: 5.2 | AC29: 18.5 | AD29: =AD21 -> 6.2 | AE29: 294.5 | AF29: 42498.15 | AG29: 0.01306028768 | AH29: 0.01623036649
A30: external borders | D30: =0.5*D27+0.5*D28 -> 80.73996504 | E30: =0.5*E27+0.5*E28 -> 98.72200768 | F30: 81.7589494 | G30: 133.7918469 | H30: 25.56404636 | I30: 15.6201625 | J30: 0 | K30: 0 | L30: 57.21121647 | M30: 49.33362738
A32: start | B32: end | C32: type | D32: 11 | E32: 22 | F32: 33 | G32: 44 | H32: 55 | I32: 66 | J32: 77 | K32: 88 | L32: 0 | M32: AVG
A33: A | B33: B | C33: ext | D33: ='AAF + CP'!R15*CI!D$30 -> 3.993496642 | E33: ='AAF + CP'!S15*CI!E$30 -> 8.789918274 | F33: ='AAF + CP'!T15*CI!F$30 -> 7.948156998 | G33: ='AAF + CP'!U15*CI!G$30 -> 14.49699857 | H33: ='AAF + CP'!V15*CI!H$30 -> 0.9394654615 | I33: ='AAF + CP'!W15*CI!I$30 -> 1.1432112 | J33: ='AAF + CP'!X15*CI!J$30 -> 0 | K33: ='AAF + CP'!Y15*CI!K$30 -> 0 | L33: ='AAF + CP'!Z15*CI!L$30 -> 3.553434843 | M33: ='AAF + CP'!AA15*CI!M$30 -> 1.504781743
A34: A | B34: C | C34: ext | D34: ='AAF + CP'!R16*CI!D$30 -> 3.993496642 | E34: ='AAF + CP'!S16*CI!E$30 -> 8.789918274 | F34: ='AAF + CP'!T16*CI!F$30 -> 7.948156998 | G34: ='AAF + CP'!U16*CI!G$30 -> 14.49699857 | H34: ='AAF + CP'!V16*CI!H$30 -> 0.9394654615 | I34: ='AAF + CP'!W16*CI!I$30 -> 1.1432112 | J34: ='AAF + CP'!X16*CI!J$30 -> 0 | K34: ='AAF + CP'!Y16*CI!K$30 -> 0 | L34: ='AAF + CP'!Z16*CI!L$30 -> 3.553434843 | M34: ='AAF + CP'!AA16*CI!M$30 -> 1.504781743
A35: B | B35: C | C35: int | D35: ='AAF + CP'!R17*CI!D$30 -> 17.94213432 | E35: ='AAF + CP'!S17*CI!E$30 -> 40.0569383 | F35: ='AAF + CP'!T17*CI!F$30 -> 34.66757009 | G35: ='AAF + CP'!U17*CI!G$30 -> 63.7539073 | H35: ='AAF + CP'!V17*CI!H$30 -> 4.126059414 | I35: ='AAF + CP'!W17*CI!I$30 -> 4.8390702 | J35: ='AAF + CP'!X17*CI!J$30 -> 0 | K35: ='AAF + CP'!Y17*CI!K$30 -> 0 | L35: ='AAF + CP'!Z17*CI!L$30 -> 16.64241782 | M35: ='AAF + CP'!AA17*CI!M$30 -> 6.936395103
A36: B | B36: D | C36: ext | D36: ='AAF + CP'!R18*CI!D$30 -> 7.063034617 | E36: ='AAF + CP'!S18*CI!E$30 -> 12.0633235 | F36: ='AAF + CP'!T18*CI!F$30 -> 2.330994771 | G36: ='AAF + CP'!U18*CI!G$30 -> 4.950321195 | H36: ='AAF + CP'!V18*CI!H$30 -> 0.9653811942 | I36: ='AAF + CP'!W18*CI!I$30 -> 0.7642437507 | J36: ='AAF + CP'!X18*CI!J$30 -> 0 | K36: ='AAF + CP'!Y18*CI!K$30 -> 0 | L36: ='AAF + CP'!Z18*CI!L$30 -> 7.591212824 | M36: ='AAF + CP'!AA18*CI!M$30 -> 4.648823012
A37: C | B37: E | C37: int | D37: ='AAF + CP'!R19*CI!D$30 -> 16.43588405 | E37: ='AAF + CP'!S19*CI!E$30 -> 15.88370029 | F37: ='AAF + CP'!T19*CI!F$30 -> 16.16075534 | G37: ='AAF + CP'!U19*CI!G$30 -> 29.60253662 | H37: ='AAF + CP'!V19*CI!H$30 -> 7.997723597 | I37: ='AAF + CP'!W19*CI!I$30 -> 6.579661089 | J37: ='AAF + CP'!X19*CI!J$30 -> 0 | K37: ='AAF + CP'!Y19*CI!K$30 -> 0 | L37: ='AAF + CP'!Z19*CI!L$30 -> 16.36315397 | M37: ='AAF + CP'!AA19*CI!M$30 -> 14.48271524
A38: D | B38: E | C38: ext | D38: ='AAF + CP'!R20*CI!D$30 -> 7.063034617 | E38: ='AAF + CP'!S20*CI!E$30 -> 12.0633235 | F38: ='AAF + CP'!T20*CI!F$30 -> 2.330994772 | G38: ='AAF + CP'!U20*CI!G$30 -> 4.950321195 | H38: ='AAF + CP'!V20*CI!H$30 -> 0.9653811942 | I38: ='AAF + CP'!W20*CI!I$30 -> 0.7642437507 | J38: ='AAF + CP'!X20*CI!J$30 -> 0 | K38: ='AAF + CP'!Y20*CI!K$30 -> 0 | L38: ='AAF + CP'!Z20*CI!L$30 -> 7.591212824 | M38: ='AAF + CP'!AA20*CI!M$30 -> 4.648823012
A39: E | B39: F | C39: int | D39: ='AAF + CP'!R21*CI!D$30 -> 24.24888415 | E39: ='AAF + CP'!S21*CI!E$30 -> 1.074885531 | F39: ='AAF + CP'!T21*CI!F$30 -> 10.37232043 | G39: ='AAF + CP'!U21*CI!G$30 -> 1.540763464 | H39: ='AAF + CP'!V21*CI!H$30 -> 9.630570041 | I39: ='AAF + CP'!W21*CI!I$30 -> 0.3865213074 | J39: ='AAF + CP'!X21*CI!J$30 -> 0 | K39: ='AAF + CP'!Y21*CI!K$30 -> 0 | L39: ='AAF + CP'!Z21*CI!L$30 -> 1.916349344 | M39: ='AAF + CP'!AA21*CI!M$30 -> 15.60730752
C41: zone | D41: 11 | E41: 22 | F41: 33 | G41: 44 | H41: 55 | I41: 66 | J41: 77 | K41: 88 | L41: 0 | M41: AVG | N41: sum | O41: sum (00 - 99) | P41: rel. cases | Q41: rel. AVG
C42: A | D42: 0 | E42: 0 | F42: 0 | G42: 0 | H42: 0 | I42: 0 | J42: 0 | K42: 0 | L42: 0 | M42: 0 | N42: =SUM(D42:L42) -> 0 | O42: =SUMPRODUCT($D$4:$L$4,D42:L42) -> 0 | P42: =O42/$O$48 -> 0 | Q42: =M42/M$48 -> 0
C43: B | D43: =0.5*D24+0.25*D27+0.25*D28+0.5*D35+D33+D36 -> 96.28350086 | E43: 118.1923921 | F43: 344.2334621 | G43: 556.82835 | H43: 16.74989954 | I43: 12.1370713 | J43: 0 | K43: 0 | L43: 63.70345392 | M43: =0.5*M24+0.25*M27+0.25*M28+0.5*M35+M33+M36 -> 44.62167222 | N43: =SUM(D43:L43) -> 1208.12813 | O43: 503086.0433 | P43: 0.154605517 | Q43: =M43/M$48 -> 0.1168106603
C44: C | D44: =0.5*D24+0.5*D25+0.25*D27+D34+0.5*D35+0.5*D37 -> 197.4862212 | E44: 178.604807 | F44: 340.7126402 | G44: 549.6509193 | H44: 218.7873106 | I44: 141.3324143 | J44: 0 | K44: 0 | L44: 138.11385 | M44: =0.5*M24+0.5*M25+0.25*M27+M34+0.5*M35+0.5*M37 -> 148.8015363 | N44: 1764.688163 | O44: 1321661.511 | P44: 0.4061654342 | Q44: 0.3895328175
C45: D | D45: 0 | E45: 0 | F45: 0 | G45: 0 | H45: 0 | I45: 0 | J45: 0 | K45: 0 | L45: 0 | M45: 0 | N45: 0 | O45: 0 | P45: 0 | Q45: 0
C46: E | D46: =0.5*D25+0.5*D26+0.25*D28+0.5*D37+D38+0.5*D39 -> 200.2058359 | E46: 187.7153582 | F46: 26.36773743 | G46: 58.85034902 | H46: 239.3975048 | I46: 158.9372537 | J46: 220.5 | K46: 5.2 | L46: 162.9245214 | M46: =0.5*M25+0.5*M26+0.25*M28+0.5*M37+M38+0.5*M39 -> 174.5731377 | N46: 1260.09856 | O46: 1344356.931 | P46: 0.4131400605 | Q46: 0.4569977428
C47: F | D47: =0.5*D26+0.5*D39 -> 12.12444208 | E47: 10.58744277 | F47: 6.686160214 | G47: 22.07038173 | H47: 9.865285021 | I47: 12.59326065 | J47: 220.5 | K47: 5.2 | L47: 19.45817467 | M47: =0.5*M26+0.5*M39 -> 14.00365376 | N47: 319.0851471 | O47: 84893.51543 | P47: 0.0260889882 | Q47: 0.03665877948
L48: sum | M48: =SUM(M42:M47) -> 382 | O48: =SUM(O42:O47) -> 3253998
C50: congestion income
C51: =C41 -> zone | D51: =D41 -> 11 | E51: 22 | F51: 33 | G51: 44 | H51: 55 | I51: 66 | J51: 77 | K51: 88 | L51: 0 | M51: AVG | N51: =N41 -> sum | O51: =O41 -> sum (00 - 99) | P51: =P41 -> rel. cases | Q51: =Q41 -> rel. AVG
C52: =C43 -> B | D52: =D43 -> 96.28350086 | E52: 118.1923921 | F52: 344.2334621 | G52: 556.82835 | H52: 16.74989954 | I52: 12.1370713 | J52: 0 | K52: 0 | L52: 63.70345392 | M52: =M43 -> 44.62167222 | N52: =N43 -> 1208.12813 | O52: 503086.0433 | P52: 0.154605517 | Q52: 0.1168106603
C53: =C44 -> C | D53: =D44 -> 197.4862212 | E53: 178.604807 | F53: 340.7126402 | G53: 549.6509193 | H53: 218.7873106 | I53: 141.3324143 | J53: 0 | K53: 0 | L53: 138.11385 | M53: =M44 -> 148.8015363 | N53: 1764.688163 | O53: 1321661.511 | P53: 0.4061654342 | Q53: 0.3895328175
C54: =C46 -> E | D54: =D46 -> 200.2058359 | E54: 187.7153582 | F54: 26.36773743 | G54: 58.85034902 | H54: 239.3975048 | I54: 158.9372537 | J54: 220.5 | K54: 5.2 | L54: 162.9245214 | M54: =M46 -> 174.5731377 | N54: =N46 -> 1260.09856 | O54: 1344356.931 | P54: 0.4131400605 | Q54: 0.4569977428
C55: =C47 -> F | D55: =D47 -> 12.12444208 | E55: 10.58744277 | F55: 6.686160214 | G55: 22.07038173 | H55: 9.865285021 | I55: 12.59326065 | J55: 220.5 | K55: 5.2 | L55: 19.45817467 | M55: =M47 -> 14.00365376 | N55: 319.0851471 | O55: 84893.51543 | P55: 0.0260889882 | Q55: 0.03665877948
A61: =A30 -> external borders | D61: =D30 -> 80.73996504 | E61: 98.72200768 | F61: 81.7589494 | G61: 133.7918469 | H61: 25.56404636 | I61: 15.6201625 | J61: 0 | K61: 0 | L61: 57.21121647
A62: internal borders | D62: =SUM(D24:D26)+0.5*D27+0.5*D28 -> 425.360035 | E62: =SUM(E24:E26)+0.5*E27+0.5*E28 -> 396.3779923 | F62: 636.2410506 | G62: 1053.608153 | H62: 459.2359536 | I62: 309.3798375 | J62: 441 | K62: 10.4 | L62: 326.9887835
A63: sum | D63: =D61+D62 -> 506.1 | E63: =E61+E62 -> 495.1 | F63: 718 | G63: 1187.4 | H63: 484.8 | I63: 325 | J63: 441 | K63: 10.4 | L63: 384.2
C65: relative
C66: external pot | D66: =D61/D63 -> 0.1595336199 | E66: =E61/E63 -> 0.1993981169 | F66: 0.1138704031 | G66: 0.112676307 | H66: 0.05273111874 | I66: 0.04806203846 | J66: 0 | K66: 0 | L66: 0.1489099856
C67: internal pot | D67: =D62/D63 -> 0.8404663801 | E67: =E62/E63 -> 0.8006018831 | F67: 0.8861295969 | G67: 0.887323693 | H67: 0.9472688813 | I67: 0.9519379615 | J67: 1 | K67: 1 | L67: 0.8510900144
C83: zone | D83: 11 | E83: 22 | F83: 33 | G83: 44 | H83: 55 | I83: 66 | J83: 77 | K83: 88 | L83: 0 | M83: sum | N83: sum (00 - 99) | O83: rel. cases
C84: B | D84: =0.5*D24+0.25*D27+0.25*D28 -> 76.25590243 | E84: =0.5*E24+0.25*E27+0.25*E28 -> 77.31068114 | F84: 316.6205253 | G84: 505.5040765 | H84: 12.78202318 | I84: 7.810081249 | J84: 0 | K84: 0 | L84: 44.23759734 | M84: =SUM(D84:L84) -> 1040.520887 | N84: =SUMPRODUCT($D$4:$L$4,D84:L84) -> 386185.4916 | O84: =N84/$N$90 -> 0.1186803101
C85: C | D85: =0.5*D25+0.5*D24+0.25*D27 -> 176.3037154 | E85: =0.5*E25+0.5*E24+0.25*E27 -> 141.8445694 | F85: 307.3503205 | G85: 488.4756988 | H85: 211.7859536 | I85: 134.4798375 | J85: 0 | K85: 0 | L85: 118.0576292 | M85: =SUM(D85:L85) -> 1578.297724 | N85: =SUMPRODUCT($D$4:$L$4,D85:L85) -> 1196566.937 | O85: =N85/$N$90 -> 0.3677220873
C86: E | D86: =0.5*D25+0.5*D26+0.25*D28 -> 172.8004172 | E86: =0.5*E25+0.5*E26+0.25*E28 -> 167.1727418 | F86: 10.77020477 | G86: 38.32837778 | H86: 229.6179768 | I86: 154.6899188 | J86: 220.5 | K86: 5.2 | L86: 146.193557 | M86: 1145.273194 | N86: 1220496.742 | O86: 0.3750760578
C87: F | D87: =0.5*D26 -> 0 | E87: =0.5*E26 -> 10.05 | F87: 1.5 | G87: 21.3 | H87: 5.05 | I87: 12.4 | J87: 220.5 | K87: 5.2 | L87: 18.5 | M87: 294.5 | N87: 42498.15 | O87: 0.01306028768
C88: A | D88: =0.5*D27 -> 7.987360818 | E88: =0.5*E27 -> 6.133154198 | F88: 63.21853985 | G88: 99.73509136 | H88: 0 | I88: 0 | J88: 0 | K88: 0 | L88: 3.337691396 | M88: 180.4118376 | N88: 40633.53312 | O88: 0.01248726432
C89: D | D89: =0.5*D28 -> 72.75260422 | E89: =0.5*E28 -> 92.58885348 | F89: 18.54040954 | G89: 34.05675556 | H89: 25.56404636 | I89: 15.6201625 | J89: 0 | K89: 0 | L89: 53.87352507 | M89: 312.9963567 | N89: 367617.1468 | O89: 0.1129739928
M90: sum | N90: =SUM(N84:N89) -> 3253998

Sheet external data
A1: ENTSO-E Transparency 2015
B2: AT | C2: CZ | D2: SK | E2: HU | F2: RO | G2: PL
A3: generation | B3: 5539.702644 | C3: 7835.755708 | D3: 3019.834018 | E3: 3098.655422 | F3: 8679.49572 | G3: 16838.18904
A4: load | B4: 6753.059561 | C4: 7248.296868 | D4: 3222.164932 | E4: 4747.955041 | F4: 6531.335894 | G4: 18419.35005
A6: balance | B6: -1213.356917 | C6: 587.4588399 | D6: -202.3309137 | E6: -1649.299619 | F6: 2148.159826 | G6: -1581.161001
A9: OTE - ČR 4M MC 2015
A11: balance | B11: 11 | C11: 22 | D11: 33 | E11: 44 | F11: 55 | G11: 66 | H11: 77 | I11: 88 | J11: 00 | K11: AVG
A12: zone A | B12: 0 | C12: 0 | D12: 0 | E12: 0 | F12: 0 | G12: 0 | H12: 0 | I12: 0 | J12: 0 | K12: 0
A13: zone B | B13: 58 | C13: 85 | D13: 130 | E13: 108 | F13: -21.5 | G13: -27 | H13: -52 | I13: -62 | J13: 29 | K13: 26
A14: zone C | B14: -11 | C14: -46 | D14: -170 | E14: -140 | F14: 68.5 | G14: 65 | H14: 42 | I14: 30 | J14: -4 | K14: 12
A15: zone D | B15: 0 | C15: 0 | D15: 0 | E15: 0 | F15: 0 | G15: 0 | H15: 0 | I15: 0 | J15: 0 | K15: 0
A16: zone E | B16: 1.5 | C16: -40.5 | D16: 70 | E16: 30 | F16: 3.5 | G16: -40 | H16: 100 | I16: 30 | J16: -27 | K16: -7
A17: zone F | B17: -48.5 | C17: 1.5 | D17: -30 | E17: 2 | F17: -50.5 | G17: 2 | H17: -90 | I17: 2 | J17: 2 | K17: -31
A20: price | B20: 11 | C20: 22 | D20: 33 | E20: 44 | F20: 55 | G20: 66 | H20: 77 | I20: 88 | J20: 00 | K20: AVG | N20: Clearing Price [EUR/MWh]
A21: zone A | B21: 0 | C21: 0 | D21: 0 | E21: 0 | F21: 0 | G21: 0 | H21: 0 | I21: 0 | J21: 0 | K21: 0 | O21: zone A | P21: zone B | Q21: zone C | R21: zone D | S21: zone E | T21: zone F
A22: zone B | B22: 31.8 | C22: 40 | D22: 46 | E22: 49.9 | F22: 28.3 | G22: 34.8 | H22: 21.5 | I22: 34.3 | J22: 39 | K22: 32.9 | N22: 11 | O22: 0 | P22: 31.8 | Q22: 33.8 | R22: 0 | S22: 42.1 | T22: 42.1
A23: zone C | B23: 33.8 | C23: 41 | D23: 51.5 | E23: 60.5 | F23: 28.3 | G23: 34.8 | H23: 21.5 | I23: 34.3 | J23: 40.8 | K23: 34.4 | N23: 22 | O23: 0 | P23: 40 | Q23: 41 | R23: 0 | S23: 51 | T23: 37.6
A24: zone D | B24: 0 | C24: 0 | D24: 0 | E24: 0 | F24: 0 | G24: 0 | H24: 0 | I24: 0 | J24: 0 | K24: 0 | N24: 33 | O24: 0 | P24: 46 | Q24: 51.5 | R24: 0 | S24: 51.5 | T24: 51.6
A25: zone E | B25: 42.1 | C25: 51 | D25: 51.5 | E25: 60.5 | F25: 38.4 | G25: 42.7 | H25: 21.5 | I25: 34.3 | J25: 52.6 | K25: 43.1 | N25: 44 | O25: 0 | P25: 49.9 | Q25: 60.5 | R25: 0 | S25: 60.5 | T25: 39.2
A26: zone F | B26: 42.1 | C26: 37.6 | D26: 51.6 | E26: 39.2 | F26: 38.6 | G26: 30.3 | H26: 26.4 | I26: 29.1 | J26: 34.1 | K26: 43.5 | N26: 55 | O26: 0 | P26: 28.3 | Q26: 28.3 | R26: 0 | S26: 38.4 | T26: 38.6
N27: 66 | O27: 0 | P27: 34.8 | Q27: 34.8 | R27: 0 | S27: 42.7 | T27: 30.3
N28: 77 | O28: 0 | P28: 21.5 | Q28: 21.5 | R28: 0 | S28: 21.5 | T28: 26.4
N29: 88 | O29: 0 | P29: 34.3 | Q29: 34.3 | R29: 0 | S29: 34.3 | T29: 29.1
N30: 00 | O30: 0 | P30: 39 | Q30: 40.8 | R30: 0 | S30: 52.6 | T30: 34.1
A40: AVG | B40: 0 | C40: 32.9 | D40: 34.4 | E40: 0 | F40: 43.1 | G40: 43.5

Sheet algorithm
A1: macro name | B1: shortcut | E1: algorithm
A2: flowComputation | B2: A | F2: D
A3: inputChange | B3: B | F3: A
A4: outputCopy | B4: C | F4: C
A5: referenceCopy | B5: D | E5: for all zones | F5: D
A6: ptdf | B6: E | F6: B (i)
F7: A
F8: C (i)
F9: E
A17: for right working of the computation the sheet "nodes" has to be renamed to "hubs"

Sheet cwe example
B2: Zone | C2: Net Position [MW] | D2: Clearing Price [EUR/MWh]
B3: BE | C3: -1317.6 | D3: 49.29 | G3: =-SUMPRODUCT(C3:C6,D3:D6) -> 50938.852
B4: FR | C4: -1331.9 | D4: 45.59 | G4: =G3/SUM(C26:C30) -> 0.8647437619
B5: DE | C5: 5434.8 | D5: 39.96
B6: NL | C6: -2784.9 | D6: 51.15
B9: Zone | C9: Net Position [MW] | D9: Clearing Price [EUR/MWh]
B10: BE | C10: -1912.6 | D10: 49.29
B11: FR | C11: -756.9 | D11: 45.59
B12: DE | C12: 5754.4 | D12: 39.96
B13: NL | C13: -3084.9 | D13: 51.15
A16: Border | B16: Type | C16: $AAF_{ij}$ [MW] | D16: delta abs CP [EUR/MWh] | E16: share
A17: BE-FR | B17: int | C17: -1299.6 | D17: =D3-D4 -> 3.7 | E17: =ABS(C17)/$C$22 -> 0.1695056737
A18: FR-DE | B18: int | C18: -1049.4 | D18: =D4-D5 -> 5.63 | E18: =ABS(C18)/$C$22 -> 0.1368723099
A19: DE-NL | B19: int | C19: 3697.9 | D19: =D6-D5 -> 11.19 | E19: 0.4823138124
A20: NL-BE | B20: int | C20: 613 | D20: =D6-D3 -> 1.86 | E20: 0.07995304552
A21: FR-DE | B21: ext | C21: -1007.1 | D21: =D18 -> 5.63 | E21: 0.1313551585
A22: sum | C22: =SUM(ABS(C17)+ABS(C18)+ABS(C19)+ABS(C20)+ABS(C21)) -> 7667
C24: Congestion Income
A25: Border | B25: Type | C25: unscaled | D25: scaled | E25: ext | F25: ext
A26: BE-FR | B26: int | C26: =ABS(C17*D17) -> 4808.52 | D26: =C26*$G$4 -> 4158.137674 | E26: =0.5*$D$30*E17 -> 415.5494122 | F26: =0.5*$D$37*E17 -> 195.9209108
A27: FR-DE | B27: int | C27: =ABS(C18*D18) -> 5908.122 | D27: =C27*$G$4 -> 5109.011644 | E27: =0.5*$D$30*E18 -> 335.5475171 | F27: =0.5*$D$37*E18 -> 158.2020651
A28: DE-NL | B28: int | C28: =ABS(C19*D19) -> 41379.501 | D28: 35782.66536 | E28: =0.5*$D$30*E19 -> 1182.410104 | F28: =0.5*$D$37*E19 -> 557.4760974
A29: NL-BE | B29: int | C29: =ABS(C20*D20) -> 1140.18 | D29: 985.9635424 | E29: =0.5*$D$30*E20 -> 196.0078406 | F29: =0.5*$D$37*E20 -> 92.41267955
A30: FR-DE | B30: ext | C30: =ABS(C21*D21) -> 5669.973 | D30: 4903.073782 | E30: =0.5*$D$30*E21 -> 322.0220168 | F30: =0.5*$D$37*E21 -> 151.825138
B32: Zone | C32: Resale Costs [EUR] | D32: CI after RC [EUR]
B33: BE | C33: =2073.81+443.8+0.73 -> 2518.34 | D33: =C43-C33 -> 53.71060807
B34: FR | C34: =2073.81+1374.1+17.53+17.79 -> 3483.23 | D34: =C44-C34 -> 1150.344659
B35: DE | C35: =4191.2+1374.1+17.53+202.89+16.54 -> 5802.26 | D35: 14643.5785
B36: NL | C36: =4712.5+443.8+195.18+0.73 -> 5352.21 | D36: 13032.10445
B37: external | C37: =1253.2+1338.2 -> 2591.4 | D37: =D30-C37 -> 2311.673782
B42: Zone | C42: CI - internal | D42: CI - external | E42: CI
B43: BE | C43: =0.5*D26+0.5*D29 -> 2572.050608 | D43: =0.5*E26+0.5*E29 -> 305.7786264 | E43: =C43+D43 -> 2877.829234
B44: FR | C44: =0.5*D26+0.5*D27 -> 4633.574659 | D44: =0.5*E27+0.5*E26+0.25*D30+0.5*E30 -> 1762.327918 | E44: =C44+D44 -> 6395.902577
B45: DE | C45: =0.5*D27+0.5*D28 -> 20445.8385 | D45: =0.5*E27+0.5*E28+0.25*D30+0.5*E30 -> 2145.758264 | E45: 22591.59677
B46: NL | C46: =0.5*D28+0.5*D29 -> 18384.31445 | D46: =0.5*E28+0.5*E29 -> 689.2089724 | E46: 19073.52342
C48: Congestion Income
B49: Zone | C49: internal | D49: external | E49: total
B50: BE | C50: =D33 -> 53.71060807 | D50: =0.5*F26+0.5*F29 -> 144.1667952 | E50: =C50+D50 -> 197.8774033
B51: FR | C51: =D34 -> 1150.344659 | D51: =0.5*F27+0.5*F26+0.25*D37+0.5*F30 -> 830.8925024 | E51: =C51+D51 -> 1981.237161
B52: DE | C52: 14643.5785 | D52: =0.5*F27+0.5*F28+0.25*D37+0.5*F30 -> 1011.670096 | E52: 15655.2486
B53: NL | C53: 13032.10445 | D53: =0.5*F28+0.5*F29 -> 324.9443885 | E53: 13357.04884
